Workbook

Sheet Summary
A3: Paragon Mortgages (No.7) PLC
A5: Information as at the Principal Determination Date | B5: 2004-10-31 | C5: 2005-01-31 | D5: 2005-04-30 | E5: 2005-07-31 | F5: 2005-10-31 | G5: 2006-01-31 | H5: 2006-04-28 | I5: 2006-07-31 | J5: 2006-10-31 | K5: 2007-01-31 | L5: 2007-04-30 | M5: 2007-07-31 | N5: 2007-10-31 | O5: 2008-01-31 | P5: 2008-04-30 | Q5: 2008-07-31 | R5: 2008-10-31 | S5: 2009-01-30 | T5: 2009-04-30 | U5: 2009-07-31 | V5: 2009-10-30 | W5: 2010-01-29 | X5: 2010-04-30 | Y5: 2010-07-30 | Z5: 2010-10-29 | AA5: 2011-01-31 | AB5: 2011-04-28 | AC5: 2011-07-29 | AD5: 2011-10-31 | AE5: 2012-01-31 | AF5: 2012-04-30 | AG5: 2012-07-31 | AH5: 2012-10-31 | AI5: 2013-01-31 | AJ5: 2013-04-30 | AK5: 2013-07-31 | AL5: 2013-10-31 | AM5: 2014-01-31 | AN5: 2014-04-30 | AO5: 2014-07-31 | AP5: 2014-10-31 | AQ5: 2015-01-30 | AR5: 2015-04-30 | AS5: 2015-07-31 | AT5: 2015-10-30 | AU5: 2016-01-29 | AV5: 2016-04-29 | AW5: 2016-07-29 | AX5: 2016-10-31 | AY5: 2017-01-31 | AZ5: 2017-04-28 | BA5: 2017-07-31
A6: Mortgage Asset Balance | B6: 864542 | C6: 842838 | D6: 819694 | E6: 793495 | F6: 765678 | G6: 736631 | H6: 715990 | I6: 692956 | J6: 661236 | K6: 635908 | L6: 605327 | M6: 558437 | N6: 514145 | O6: 479401 | P6: 458068 | Q6: 445990 | R6: 435438 | S6: 428260 | T6: 425859 | U6: 422086 | V6: 418494 | W6: 414741 | X6: 411668 | Y6: 407696 | Z6: 404310 | AA6: 402256 | AB6: 399014 | AC6: 396916 | AD6: 393321 | AE6: 390974 | AF6: 387947 | AG6: 385137 | AH6: 382601 | AI6: 381146 | AJ6: 378516 | AK6: 375812 | AL6: 371817 | AM6: 369115 | AN6: 364952 | AO6: 362296 | AP6: 357527.4628 | AQ6: 354629.7728 | AR6: 350339.7779 | AS6: 346456.4658 | AT6: 343280.9895 | AU6: 339866.5544 | AV6: 334240.0339 | AW6: 330805.9583 | AX6: 328778.5924 | AY6: 326117.5283 | AZ6: 321118.6512 | BA6: 0
A7: Retained Cash for the funding of Discretionary Further Advances between PDD and IPD | B7: 0 | C7: 0 | D7: 0 | E7: 0 | F7: 0 | G7: 0 | H7: 0 | I7: 0 | J7: 0 | K7: 0 | L7: 0 | M7: 0 | N7: 0 | O7: 0 | P7: 0 | Q7: 0 | R7: 0 | S7: 88 | T7: 0 | U7: 0 | V7: 0 | W7: 0 | X7: 0 | Y7: 0 | Z7: 0 | AA7: 0 | AB7: 0 | AC7: 0 | AD7: 0 | AE7: 0 | AF7: 0 | AG7: 0 | AH7: 0 | AI7: 0 | AJ7: 0 | AK7: 0 | AL7: 0 | AM7: 0 | AN7: 0 | AO7: 0 | AP7: 0 | AQ7: 0 | AR7: 0 | AS7: 0 | AT7: 0 | AU7: 0 | AV7: 0 | AW7: 0 | AX7: 0 | AY7: 0 | AZ7: 0 | BA7: 0
A8: Total Assets | B8: =+B6+B7 -> 864542 | C8: =+C6+C7 -> 842838 | D8: 819694 | E8: 793495 | F8: 765678 | G8: 736631 | H8: 715990 | I8: 692956 | J8: 661236 | K8: 635908 | L8: 605327 | M8: 558437 | N8: 514145 | O8: 479401 | P8: 458068 | Q8: 445990 | R8: 435438 | S8: 428348 | T8: 425859 | U8: 422086 | V8: 418494 | W8: 414741 | X8: 411668 | Y8: 407696 | Z8: 404310 | AA8: 402256 | AB8: 399014 | AC8: 396916 | AD8: 393321 | AE8: =+AE6+AE7 -> 390974 | AF8: 387947 | AG8: 385137 | AH8: 382601 | AI8: 381146 | AJ8: 378516 | AK8: =+AK6+AK7 -> 375812 | AL8: 371817 | AM8: 369115 | AN8: 364952 | AO8: 362296 | AP8: 357527.4628 | AQ8: =+AQ6+AQ7 -> 354629.7728 | AR8: 350339.7779 | AS8: =+AS6+AS7 -> 346456.4658 | AT8: 343280.9895 | AU8: =+AU6+AU7 -> 339866.5544 | AV8: 334240.0339 | AW8: =+AW6+AW7 -> 330805.9583 | AX8: 328778.5924 | AY8: =+AY6+AY7 -> 326117.5283 | AZ8: 321118.6512 | BA8: =+BA6+BA7 -> 0
A9: Total Notes | B9: =SUM(B10:B14) -> 864542 | C9: 842838 | D9: 819694 | E9: 793495 | F9: 765678 | G9: 736630 | H9: =SUM(H10:H14) -> 715990 | I9: =SUM(I10:I14) -> 692956 | J9: =SUM(J10:J14) -> 661236 | K9: =SUM(K10:K14) -> 635908 | L9: =SUM(L10:L14) -> 605327 | M9: =SUM(M10:M14)-1 -> 558437 | N9: =SUM(N10:N14)+1 -> 514145 | O9: =SUM(O10:O14)+1 -> 479401 | P9: =SUM(P10:P14)-1 -> 458068 | Q9: =SUM(Q10:Q14) -> 445990 | R9: =SUM(R10:R14)-1 -> 435438 | S9: =SUM(S10:S14) -> 428348 | T9: 425859 | U9: 422086 | V9: 418494 | W9: 414741 | X9: 411668 | Y9: =SUM(Y10:Y14) -> 407696 | Z9: =SUM(Z10:Z14)-1 -> 404310 | AA9: =SUM(AA10:AA14) -> 402256 | AB9: =SUM(AB10:AB14) -> 399014 | AC9: =SUM(AC10:AC14) -> 396916 | AD9: =SUM(AD10:AD14) -> 393321 | AE9: =SUM(AE10:AE14) -> 390974 | AF9: =SUM(AF10:AF14)-1 -> 387947 | AG9: =SUM(AG10:AG14)+1 -> 385137 | AH9: =SUM(AH10:AH14)-1 -> 382601 | AI9: =SUM(AI10:AI14)+1 -> 381146 | AJ9: =SUM(AJ10:AJ14)+1 -> 378516 | AK9: =SUM(AK10:AK14)+1 -> 375812 | AL9: =SUM(AL10:AL14)-1 -> 371817 | AM9: =SUM(AM10:AM14) -> 369115 | AN9: =SUM(AN10:AN14) -> 364952 | AO9: =SUM(AO10:AO14) -> 362296 | AP9: =SUM(AP10:AP14)-1 -> 357527 | AQ9: =SUM(AQ10:AQ14)-1 -> 354630 | AR9: =SUM(AR10:AR14) -> 350340 | AS9: =SUM(AS10:AS14) -> 346456 | AT9: =SUM(AT10:AT14)+1 -> 343281 | AU9: =SUM(AU10:AU14)+2 -> 339867 | AV9: =SUM(AV10:AV14)+1 -> 334240 | AW9: =SUM(AW10:AW14) -> 330806 | AX9: =SUM(AX10:AX14) -> 328779 | AY9: =SUM(AY10:AY14) -> 326118 | AZ9: =SUM(AZ10:AZ14) -> 321119 | BA9: =SUM(BA10:BA14) -> 0
A10: Class A1a Notes | B10: 241666 | C10: 234892 | D10: 227669 | E10: 219492 | F10: 210811 | G10: 201745 | H10: 195303 | I10: 188114 | J10: 178214 | K10: 170309 | L10: 160765 | M10: 146131 | N10: 132307 | O10: 121463 | P10: 114806 | Q10: 111036 | R10: 107743 | S10: 105530 | T10: 104753 | U10: 104753 | V10: 104447 | W10: 103510 | X10: 102743 | Y10: 101752 | Z10: 100907 | AA10: 100394 | AB10: 99585 | AC10: 99061 | AD10: 98164 | AE10: 97578 | AF10: 96823 | AG10: 96121 | AH10: 95489 | AI10: 95125 | AJ10: 94469 | AK10: 93794 | AL10: 92797 | AM10: 92123 | AN10: 91084 | AO10: 90421 | AP10: 89231 | AQ10: 88508 | AR10: 87437 | AS10: 86468 | AT10: 85675 | AU10: 84823 | AV10: 83419 | AW10: 82562 | AX10: 82056 | AY10: 81392 | AZ10: 80144 | BA10: 0
A11: Class A1b Notes | B11: 210183 | C11: 204290 | D11: 198007 | E11: 190894 | F11: 183341 | G11: 175455 | H11: 169851 | I11: 163598 | J11: 154986 | K11: 148109 | L11: 139806 | M11: 127076 | N11: 115050 | O11: 105617 | P11: 99826 | Q11: 96546 | R11: 93682 | S11: 91757 | T11: 91081 | U11: 91081 | V11: 90814 | W11: 90000 | X11: 89333 | Y11: 88471 | Z11: 87736 | AA11: 87291 | AB11: 86587 | AC11: 86132 | AD11: 85352 | AE11: 84843 | AF11: 84186 | AG11: 83576 | AH11: 83026 | AI11: 82710 | AJ11: 82139 | AK11: 81552 | AL11: 80686 | AM11: 80099 | AN11: 79196 | AO11: 78619 | AP11: 77585 | AQ11: 76956 | AR11: 76025 | AS11: 75182 | AT11: 74493 | AU11: 73752 | AV11: 72531 | AW11: 71786 | AX11: 71346 | AY11: 70769 | AZ11: 69684 | BA11: 0
A12: Class A1c Notes | B12: 322444 | C12: 313406 | D12: 303769 | E12: 292860 | F12: 281277 | G12: 269181 | H12: 260587 | I12: 250995 | J12: 237787 | K12: 227241 | L12: 214507 | M12: 194982 | N12: 176538 | O12: 162071 | P12: 153188 | Q12: 148159 | R12: 143765 | S12: 140812 | T12: 139776 | U12: 139776 | V12: 139367 | W12: 138117 | X12: 137094 | Y12: 135771 | Z12: 134644 | AA12: 133959 | AB12: 132880 | AC12: 132181 | AD12: 130984 | AE12: 130202 | AF12: 129194 | AG12: 128258 | AH12: 127414 | AI12: 126929 | AJ12: 126053 | AK12: 125153 | AL12: 123823 | AM12: 122923 | AN12: 121536 | AO12: 120652 | AP12: 119064 | AQ12: 118099 | AR12: 116670 | AS12: 115377 | AT12: 114319 | AU12: 113182 | AV12: 111308 | AW12: 110165 | AX12: 109490 | AY12: 108603 | AZ12: 106939 | BA12: 0
A13: Class B1a Notes | B13: 46374 | C13: 46374 | D13: 46374 | E13: 46374 | F13: 46374 | G13: 46374 | H13: 46374 | I13: 46374 | J13: 46374 | K13: 46374 | L13: 46374 | M13: 46374 | N13: 46374 | O13: 46374 | P13: 46374 | Q13: 46374 | R13: 46374 | S13: 46374 | T13: 46374 | U13: 44435 | V13: 43094 | W13: 42708 | X13: 42391 | Y13: 41982 | Z13: 41634 | AA13: 41422 | AB13: 41088 | AC13: 40872 | AD13: 40502 | AE13: 40260 | AF13: 39949 | AG13: 39659 | AH13: 39398 | AI13: 39248 | AJ13: 38977 | AK13: 38699 | AL13: 38288 | AM13: 38009 | AN13: 37581 | AO13: 37307 | AP13: 36816 | AQ13: 36518 | AR13: 36076 | AS13: 35676 | AT13: 35349 | AU13: 34997 | AV13: 34418 | AW13: 34064 | AX13: 33856 | AY13: 33582 | AZ13: 33067 | BA13: 0
A14: Class B1b Notes | B14: 43875 | C14: 43876 | D14: 43875 | E14: 43875 | F14: 43875 | G14: 43875 | H14: 43875 | I14: 43875 | J14: 43875 | K14: 43875 | L14: 43875 | M14: 43875 | N14: 43875 | O14: 43875 | P14: 43875 | Q14: 43875 | R14: 43875 | S14: 43875 | T14: 43875 | U14: 42041 | V14: 40772 | W14: 40406 | X14: 40107 | Y14: 39720 | Z14: 39390 | AA14: 39190 | AB14: 38874 | AC14: 38670 | AD14: 38319 | AE14: 38091 | AF14: 37796 | AG14: 37522 | AH14: 37275 | AI14: 37133 | AJ14: 36877 | AK14: 36613 | AL14: 36224 | AM14: 35961 | AN14: 35555 | AO14: 35297 | AP14: 34832 | AQ14: 34550 | AR14: 34132 | AS14: 33753 | AT14: 33444 | AU14: 33111 | AV14: 32563 | AW14: 32229 | AX14: 32031 | AY14: 31772 | AZ14: 31285 | BA14: 0
A15: Class B Notes as a % of the Total Notes | B15: =SUM(B13:B14)/B9 -> 0.1043893761 | C15: 0.1070787031 | D15: 0.1101008425 | E15: 0.1137360664 | F15: 0.1178680855 | G15: 0.1225160528 | H15: =SUM(H13:H14)/H9 -> 0.1260478498 | I15: 0.1302377063 | J15: 0.1364853093 | K15: 0.1419214729 | L15: 0.1490913176 | M15: 0.1616099936 | N15: 0.1755321942 | O15: 0.1882536749 | P15: 0.1970209663 | Q15: 0.2023565551 | R15: 0.2072602759 | S15: 0.2106908402 | T15: 0.211922256 | U15: 0.204877679 | V15: 0.2003995278 | W15: 0.2003997676 | X15: 0.2003993509 | Y15: 0.2003993171 | Z15: 0.2004006826 | AA15: 0.2003997454 | AB15: 0.2003989835 | AC15: 0.2004000847 | AD15: 0.2003986566 | AE15: =SUM(AE13:AE14)/AE9 -> 0.2003995151 | AF15: 0.2004010857 | AG15: 0.2003988191 | AH15: 0.2003993717 | AI15: 0.2003982726 | AJ15: 0.200398398 | AK15: =SUM(AK13:AK14)/AK9 -> 0.2003980714 | AL15: 0.200399659 | AM15: 0.2003982499 | AN15: 0.2003989566 | AO15: 0.2003996732 | AP15: 0.200398851 | AQ15: =SUM(AQ13:AQ14)/AQ9 -> 0.2004004173 | AR15: 0.2003996118 | AS15: =SUM(AS13:AS14)/AS9 -> 0.2003977417 | AT15: 0.2003985073 | AU15: =SUM(AU13:AU14)/AU9 -> 0.2003960373 | AV15: 0.2003979177 | AW15: =SUM(AW13:AW14)/AW9 -> 0.2003984208 | AX15: 0.2003990523 | AY15: =SUM(AY13:AY14)/AY9 -> 0.2003998553 | AZ15: 0.2003992289 | BA15: 0
A16: Overall Lifetime Redemption Rate | B16: 0.1664 | C16: 0.1554 | D16: 0.1507 | E16: 0.1507 | F16: 0.1518 | G16: 0.153 | H16: 0.1507 | I16: 0.1499 | J16: 0.1536 | K16: 0.1547 | L16: 0.1603 | M16: 0.1723 | N16: 0.1827 | O16: 0.1881 | P16: 0.188 | Q16: 0.1843 | R16: 0.1798 | S16: 0.1742 | T16: 0.1676 | U16: 0.1619 | V16: 0.1564 | W16: 0.1514 | X16: 0.1466 | Y16: 0.1424 | Z16: 0.1385 | AA16: 0.1345 | AB16: 0.1311 | AC16: 0.1275 | AD16: 0.1246 | AE16: 0.1215 | AF16: 0.1188 | AG16: 0.1162 | AH16: 0.1137 | AI16: 0.111 | AJ16: 0.1088 | AK16: 0.1067 | AL16: 0.1051 | AM16: 0.1033 | AN16: 0.1018 | AO16: 0.1001 | AP16: 0.099 | AQ16: 0.0975 | AR16: 0.0964 | AS16: 0.0953 | AT16: 0.0942 | AU16: 0.0931 | AV16: 0.0926 | AW16: 0.0917 | AX16: 0.0906 | AY16: 0.0895 | AZ16: 0.0891 | BA16: 1
A17: Quarterly Redemption Rate | B17: 0.0761 | C17: 0.0359 | D17: 0.0363 | E17: 0.0401 | F17: 0.0418 | G17: 0.0426 | H17: 0.0355 | I17: 0.0381 | J17: 0.05 | K17: 0.0442 | L17: 0.0599 | M17: 0.0857 | N17: 0.0872 | O17: 0.0723 | P17: 0.0506 | Q17: 0.0326 | R17: 0.0267 | S17: 0.0175 | T17: 0.0091 | U17: 0.0105 | V17: 0.0097 | W17: 0.0095 | X17: 0.0088 | Y17: 0.0099 | Z17: 0.0092 | AA17: 0.0056 | AB17: 0.0089 | AC17: 0.0059 | AD17: 0.0092 | AE17: 0.0063 | AF17: 0.0082 | AG17: 0.0073 | AH17: 0.0067 | AI17: 0.0039 | AJ17: 0.0072 | AK17: 0.0077 | AL17: 0.0111 | AM17: 0.0076 | AN17: 0.0115 | AO17: 0.0075 | AP17: 0.0132 | AQ17: 0.0082 | AR17: 0.0121 | AS17: 0.0119 | AT17: 0.0108 | AU17: 0.0102 | AV17: 0.0184 | AW17: 0.0113 | AX17: 0.0096 | AY17: 0.0085 | AZ17: 0.0167 | BA17: 1
A18: Further Advances released in the quarter | B18: 11370 | C18: 7828 | D18: 7011 | E18: 6019 | F18: 4910 | G18: 3337 | H18: 5294 | I18: 4054 | J18: 3170 | K18: 3819 | L18: 7471 | M18: 4741 | N18: 4331 | O18: 2288 | P18: 2747 | Q18: 2823 | R18: 1261 | S18: 446 | T18: 1490 | U18: 697 | V18: 406 | W18: 237 | X18: 587 | Y18: 94 | Z18: 350 | AA18: 213 | AB18: 319 | AC18: 246 | AD18: 72 | AE18: 143 | AF18: 162 | AG18: 4 | AH18: 27 | AI18: 47 | AJ18: 103 | AK18: 215 | AL18: 183 | AM18: 111 | AN18: 91 | AO18: 85 | AP18: 0 | AQ18: 32 | AR18: 10 | AS18: 293 | AT18: 584 | AU18: 83 | AV18: 618 | AW18: 337 | AX18: 1152 | AY18: 122 | AZ18: 461 | BA18: 0
A19: First Loss Fund Balance | B19: 19815 | C19: 19815 | D19: 19815 | E19: 19815 | F19: 19815 | G19: 19815 | H19: 19815 | I19: 19815 | J19: 19815 | K19: 19815 | L19: 19815 | M19: 19815 | N19: 19815 | O19: 19815 | P19: 19815 | Q19: 19815 | R19: 19815 | S19: 19815 | T19: 19815 | U19: 19815 | V19: 19815 | W19: 19815 | X19: 19815 | Y19: 19815 | Z19: 19815 | AA19: 19815 | AB19: 19815 | AC19: 19815 | AD19: 19815 | AE19: 19815 | AF19: 19815 | AG19: 19815 | AH19: 19815 | AI19: 19815 | AJ19: 19815 | AK19: 19815 | AL19: 19815 | AM19: 19815 | AN19: 19815 | AO19: 19815 | AP19: 19815 | AQ19: 19815 | AR19: 19815 | AS19: 19815 | AT19: 19815 | AU19: 19815 | AV19: 19815 | AW19: 19815 | AX19: 19815 | AY19: 19815 | AZ19: 19815 | BA19: 0
A20: First Loss Fund as a % of the Mortgages | B20: =+B19/B6 -> 0.02291964994 | C20: 0.02350985599 | D20: 0.02417365505 | E20: 0.02497180196 | F20: 0.02587902486 | G20: 0.02689949242 | H20: =+H19/H6 -> 0.02767496753 | I20: 0.02859488914 | J20: 0.02996660799 | K20: 0.03116016782 | L20: 0.03273437332 | M20: 0.03548296406 | N20: 0.03853971156 | O20: 0.04133282993 | P20: 0.04325776959 | Q20: 0.04442924729 | R20: 0.0455059044 | S20: 0.04626862187 | T20: 0.04652948511 | U20: 0.04694540923 | V20: 0.04734834908 | W20: 0.04777680528 | X20: 0.04813344734 | Y20: 0.04860239002 | Z20: 0.04900942346 | AA20: 0.04925967543 | AB20: 0.04965991168 | AC20: 0.04992240172 | AD20: 0.05037869832 | AE20: =+AE19/AE6 -> 0.05068111946 | AF20: 0.05107656458 | AG20: 0.05144922456 | AH20: 0.05179024624 | AI20: 0.05198795212 | AJ20: 0.05234917414 | AK20: =+AK19/AK6 -> 0.052725831 | AL20: 0.05329234543 | AM20: 0.05368245669 | AN20: 0.05429481137 | AO20: 0.05469284784 | AP20: 0.05542231594 | AQ20: =+AQ19/AQ6 -> 0.05587517327 | AR20: 0.05655937821 | AS20: =+AS19/AS6 -> 0.05719333295 | AT20: 0.05772239246 | AU20: =+AU19/AU6 -> 0.05830229465 | AV20: 0.0592837422 | AW20: =+AW19/AW6 -> 0.05989916295 | AX20: 0.06026852253 | AY20: =+AY19/AY6 -> 0.06076030351 | AZ20: 0.06170616351 | BA20: 0
A21: Opening PDL Balance | B21: 0 | C21: 0 | D21: 0 | E21: 0 | F21: 0 | G21: 0 | H21: 0 | I21: 0 | J21: 0 | K21: 0 | L21: 0 | M21: 0 | N21: 0 | O21: 0 | P21: 0 | Q21: 0 | R21: 0 | S21: 0 | T21: 0 | U21: 0 | V21: 0 | W21: 0 | X21: 0 | Y21: 0 | Z21: 0 | AA21: 0 | AB21: 0 | AC21: 0 | AD21: 0 | AE21: 0 | AF21: 0 | AG21: 0 | AH21: 0 | AI21: 0 | AJ21: 0 | AK21: 0 | AL21: 0 | AM21: 0 | AN21: 0 | AO21: 0 | AP21: 0 | AQ21: 0 | AR21: 0 | AS21: 0 | AT21: 0 | AU21: 0 | AV21: 0 | AW21: 0 | AX21: 0 | AY21: 0 | AZ21: 0 | BA21: 0
A22: Quarterly Losses | B22: 0 | C22: 0 | D22: 0 | E22: 0 | F22: 0 | G22: 0 | H22: 0 | I22: 0 | J22: =SUM(J91+J124) -> 279 | K22: 40 | L22: 123 | M22: 134 | N22: 163 | O22: 166 | P22: =SUM(P91+P124) -> 196 | Q22: 65 | R22: 96 | S22: 142 | T22: 236 | U22: 211 | V22: =SUM(V91+V124) -> 327 | W22: 224 | X22: 528 | Y22: 287 | Z22: 119 | AA22: 239 | AB22: 84 | AC22: 243 | AD22: =SUM(AD91+AD124) -> 402 | AE22: 202 | AF22: 241 | AG22: 151 | AH22: 38 | AI22: 109 | AJ22: =SUM(AJ91+AJ124) -> 288 | AK22: 158 | AL22: 155 | AM22: 115 | AN22: 76 | AO22: -56 | AP22: =SUM(AP91+AP124) -> 168 | AQ22: -52 | AR22: =SUM(AR91+AR124) -> 265 | AS22: 56 | AT22: =SUM(AT91+AT124) -> 61 | AU22: -6 | AV22: =SUM(AV91+AV124) -> -4 | AW22: 225 | AX22: =SUM(AX91+AX124) -> 145 | AY22: 42 | AZ22: =SUM(AZ91+AZ124) -> -83 | BA22: -58
A23: Quarterly Loss Rate (annualised) | B23: 0 | C23: =1-(1-C22/C6)^4 -> 0 | D23: 0 | E23: 0 | F23: 0 | G23: 0 | H23: 0 | I23: 0 | J23: 0.001686680513 | K23: 0.0002515849842 | L23: 0.0008125361362 | M23: 0.0009594763719 | N23: 0.001267521826 | O23: 0.001384342543 | P23: 0.001710438083 | Q23: 0.0005828452783 | R23: 0.0008815790751 | S23: 0.001325637606 | T23: 0.002214854164 | U23: 0.001998093611 | V23: 0.003121831482 | W23: 0.00215863484 | X23: =1-(1-X22/X6)^4 -> 0.005120486017 | Y23: 0.002812851627 | Z23: 0.001176794763 | AA23: 0.002374478759 | AB23: 0.0008418098446 | AC23: 0.002446632908 | AD23: 0.004082000341 | AE23: =1-(1-AE22/AE6)^4 -> 0.002065032523 | AF23: 0.002482560993 | AG23: 0.001567351044 | AH23: 0.000397221535 | AI23: 0.001143427991 | AJ23: 0.003039992735 | AK23: =1-(1-AK22/AK6)^4 -> 0.001680631674 | AL23: =1-(1-AL22/AL6)^4 -> 0.00166644456 | AM23: =1-(1-AM22/AM6)^4 -> 0.001245641795 | AN23: =1-(1-AN22/AN6)^4 -> 0.0008327260921 | AO23: 0 | AP23: =1-(1-AP22/AP6)^4 -> 0.001878251505 | AQ23: 0 | AR23: 0.003022202969 | AS23: =1-(1-AS22/AS6)^4 -> 0.0006463891372 | AT23: 0.0007105985419 | AU23: 0 | AV23: 0 | AW23: =1-(1-AW22/AW6)^4 -> 0.00271785372 | AX23: =1-(1-AX22/AX6)^4 -> 0.001762938444 | AY23: =1-(1-AY22/AY6)^4 -> 0.0005150521933 | AZ23: 0 | BA23: 0
A24: PDL Replenishment made during the quarter (-ve = recoveries) | B24: 0 | C24: 0 | D24: 0 | E24: 0 | F24: 0 | G24: 0 | H24: 0 | I24: 0 | J24: 279 | K24: 40 | L24: 123 | M24: 134 | N24: 163 | O24: 166 | P24: 196 | Q24: 65 | R24: 96 | S24: 142 | T24: 236 | U24: 211 | V24: 327 | W24: 224 | X24: 528 | Y24: 287 | Z24: 119 | AA24: 239 | AB24: 84 | AC24: 243 | AD24: 402 | AE24: 202 | AF24: 241 | AG24: 151 | AH24: 38 | AI24: 109 | AJ24: 288 | AK24: 158 | AL24: 155 | AM24: 115 | AN24: 76 | AO24: -56 | AP24: 168 | AQ24: -52 | AR24: 265 | AS24: 56 | AT24: 61 | AU24: -6 | AV24: -4 | AW24: 225 | AX24: 145 | AY24: 42 | AZ24: -83 | BA24: -58
A25: Outstanding PDL at end of the quarter | B25: =B21+B22-B24 -> 0 | C25: =C21+C22-C24 -> 0 | D25: 0 | E25: 0 | F25: 0 | G25: 0 | H25: 0 | I25: 0 | J25: 0 | K25: 0 | L25: 0 | M25: 0 | N25: 0 | O25: 0 | P25: 0 | Q25: 0 | R25: 0 | S25: 0 | T25: 0 | U25: 0 | V25: 0 | W25: 0 | X25: 0 | Y25: 0 | Z25: 0 | AA25: 0 | AB25: 0 | AC25: 0 | AD25: 0 | AE25: =AE21+AE22-AE24 -> 0 | AF25: 0 | AG25: 0 | AH25: 0 | AI25: 0 | AJ25: 0 | AK25: =AK21+AK22-AK24 -> 0 | AL25: 0 | AM25: 0 | AN25: 0 | AO25: 0 | AP25: 0 | AQ25: =AQ21+AQ22-AQ24 -> 0 | AR25: 0 | AS25: =AS21+AS22-AS24 -> 0 | AT25: 0 | AU25: =AU21+AU22-AU24 -> 0 | AV25: 0 | AW25: =AW21+AW22-AW24 -> 0 | AX25: 0 | AY25: =AY21+AY22-AY24 -> 0 | AZ25: 0 | BA25: =BA21+BA22-BA24 -> 0
A26: Spread Trap repayment in the quarter | B26: N/A | C26: N/A | D26: N/A | E26: N/A | F26: N/A | G26: N/A | H26: N/A | I26: N/A | J26: N/A | K26: N/A | L26: N/A | M26: N/A | N26: N/A | O26: N/A | P26: N/A | Q26: N/A | R26: N/A | S26: N/A | T26: N/A | U26: N/A | V26: N/A | W26: N/A | X26: N/A | Y26: N/A | Z26: N/A | AA26: N/A | AB26: N/A | AC26: N/A | AD26: N/A | AE26: N/A | AF26: N/A | AG26: N/A | AH26: N/A | AI26: N/A | AJ26: N/A | AK26: N/A | AL26: N/A | AM26: N/A | AN26: N/A | AO26: N/A | AP26: N/A | AQ26: N/A | AR26: N/A | AS26: N/A | AT26: N/A | AU26: N/A | AV26: N/A | AW26: N/A | AX26: N/A | AY26: N/A | AZ26: N/A | BA26: N/A
A27: Spread % (WA Funding Rate less WA Interest Rate) | B27: 0.0115 | C27: 0.0109 | D27: 0.0114 | E27: 0.0106 | F27: 0.0115 | G27: 0.0112 | H27: 0.0115 | I27: 0.01 | J27: 0.0093 | K27: 0.0082 | L27: 0.0065 | M27: 0.0066 | N27: 0.0011 | O27: -0.0008 | P27: 0.0046 | Q27: 0.0021 | R27: 0.0047 | S27: 0.0013 | T27: 0.0147 | U27: 0.0172 | V27: 0.0183 | W27: 0.0199 | X27: 0.0176 | Y27: 0.0123 | Z27: 0.0118 | AA27: 0.0109 | AB27: 0.0107 | AC27: 0.01 | AD27: 0.0105 | AE27: 0.0097 | AF27: 0.0088 | AG27: 0.0081 | AH27: 0.0088 | AI27: 0.0104 | AJ27: 0.0104 | AK27: 0.0102 | AL27: 0.0101 | AM27: 0.0099 | AN27: 0.01 | AO27: 0.01 | AP27: 0.0098 | AQ27: 0.0099 | AR27: 0.0098 | AS27: 0.0098 | AT27: 0.0096 | AU27: 0.0098 | AV27: 0.0095 | AW27: 0.0094 | AX27: 0.0095 | AY27: 0.0093 | AZ27: 0.0097 | BA27: 0
A28: Total Income as a % of the Mortgages | B28: 0.0264 | C28: 0.0167 | D28: 0.0165 | E28: 0.0167 | F28: 0.0162 | G28: 0.0161 | H28: 0.0161 | I28: 0.0168 | J28: 0.0169 | K28: 0.0176 | L28: 0.0182 | M28: 0.018 | N28: 0.0204 | O28: 0.0188 | P28: 0.0182 | Q28: 0.0186 | R28: 0.0183 | S28: 0.0148 | T28: 0.0122 | U28: 0.0107 | V28: 0.0082 | W28: 0.0073 | X28: 0.0085 | Y28: 0.0077 | Z28: 0.007 | AA28: 0.0076 | AB28: 0.0072 | AC28: 0.0079 | AD28: 0.0076 | AE28: 0.0078 | AF28: 0.008 | AG28: 0.0077 | AH28: 0.0061 | AI28: 0.0064 | AJ28: 0.007 | AK28: 0.007 | AL28: 0.0065 | AM28: 0.0064 | AN28: 0.0061 | AO28: 0.0063 | AP28: 0.0068 | AQ28: 0.0054 | AR28: 0.0078 | AS28: 0.0067 | AT28: 0.007 | AU28: 0.0061 | AV28: 0.0064 | AW28: 0.007 | AX28: 0.0067 | AY28: 0.0055 | AZ28: 0.0067 | BA28: 0
A29: Quarterly surplus income to the Issuer | B29: 538 | C29: 2185 | D29: 2269 | E29: 2245 | F29: 2179 | G29: 1923 | H29: 2161 | I29: 2168 | J29: 1503 | K29: 1711 | L29: 1773 | M29: 864 | N29: 1255 | O29: 387 | P29: 979 | Q29: 824 | R29: 578 | S29: 385 | T29: 816 | U29: 695 | V29: 465 | W29: 481 | X29: 740 | Y29: 667 | Z29: 444 | AA29: 650 | AB29: 637 | AC29: 823 | AD29: 456 | AE29: 619 | AF29: 635 | AG29: 628 | AH29: 397 | AI29: 594 | AJ29: 688 | AK29: 835 | AL29: 648 | AM29: 619 | AN29: 653 | AO29: 771 | AP29: 645 | AQ29: 395 | AR29: 1008 | AS29: 713 | AT29: 841 | AU29: 564 | AV29: 712 | AW29: 645 | AX29: 774 | AY29: 462 | AZ29: 1080 | BA29: 20485
A30: Surplus Income as a % of the Mortgages | B30: =+B29/900700 -> 0.0005973132008 | C30: =+C29/B6 -> 0.002527349741 | D30: =+D29/C6 -> 0.002692095041 | E30: =+E29/D6 -> 0.002738826928 | F30: =+F29/E6 -> 0.002746079055 | G30: =G29/F6 -> 0.002511499612 | H30: 0.002933626198 | I30: 0.003027975251 | J30: 0.002168968881 | K30: 0.002587578414 | L30: 0.002788139165 | M30: 0.001427327709 | N30: 0.002247343926 | O30: 0.0007527059487 | P30: 0.002042131744 | Q30: 0.001798859558 | R30: 0.001295993184 | S30: 0.0008841672064 | T30: 0.001905384579 | U30: 0.001631995567 | V30: 0.001101671223 | W30: 0.00114935937 | X30: 0.001784246072 | Y30: 0.001620237667 | Z30: 0.001089046741 | AA30: 0.001607677277 | AB30: 0.001583568673 | AC30: 0.00206258427 | AD30: 0.001148857693 | AE30: 0.001573778161 | AF30: 0.00162414892 | AG30: 0.001618777823 | AH30: 0.001030802026 | AI30: 0.001552531227 | AJ30: 0.001805082567 | AK30: 0.002205983367 | AL30: 0.001724266389 | AM30: 0.001664797468 | AN30: 0.001769096352 | AO30: 0.002112606589 | AP30: 0.001780312231 | AQ30: 0.001104810234 | AR30: 0.002842400942 | AS30: 0.002035167129 | AT30: 0.00242743341 | AU30: 0.00164296893 | AV30: 0.002094939884 | AW30: 0.001929750882 | AX30: 0.002339740203 | AY30: 0.001405200979 | AZ30: 0.003311689518 | BA30: 0
A31: Losses as a % of the Mortgages | B31: =+B22/10000 -> 0 | C31: =+C22/B6 -> 0 | D31: 0 | E31: 0 | F31: 0 | G31: 0 | H31: 0 | I31: 0 | J31: 0.000402622966 | K31: 6.049277414e-05 | L31: 0.000193424206 | M31: 0.0002213679548 | N31: 0.0002918861035 | O31: 0.0003228661175 | P31: 0.000408843536 | Q31: 0.0001419003292 | R31: 0.000215251463 | S31: 0.0003261084242 | T31: 0.0005510671088 | U31: 0.0004954691576 | V31: 0.0007747236345 | W31: 0.0005352525962 | X31: 0.001273083684 | Y31: 0.0006971637339 | Z31: 0.000291884149 | AA31: 0.0005911305681 | AB31: 0.0002088222426 | AC31: 0.0006090011879 | AD31: 0.001012808756 | AE31: 0.0005135754257 | AF31: 0.0006164092753 | AG31: 0.0003892284255 | AH31: 9.866618891e-05 | AI31: 0.0002848920939 | AJ31: 0.0007556159582 | AK31: 0.0004174196071 | AL31: 0.0004124402627 | AM31: 0.0003092919366 | AN31: 0.0002058978909 | AO31: 0 | AP31: =+AP22/AO6 -> 0.0004637092322 | AQ31: 0 | AR31: =+AR22/AQ6 -> 0.0007472581841 | AS31: 0.0001598448236 | AT31: 0.0001760682972 | AU31: =+AU22/AT6 -> -1.747839287e-05 | AV31: =+AV22/AU6 -> -1.176932519e-05 | AW31: 0.0006731689122 | AX31: 0.000438323423 | AY31: 0.0001277455436 | AZ31: 0 | BA31: 0
A32: Appointment of a Receiver of Rent | B32: 56 | C32: 49 | D32: 31 | E32: 33 | F32: 55 | G32: 59 | H32: 52 | I32: 73 | J32: =SUM(J90+J123) -> 47 | K32: 48 | L32: 35 | M32: 26 | N32: 22 | O32: 25 | P32: =SUM(P90+P123) -> 23 | Q32: 36 | R32: 42 | S32: 79 | T32: 93 | U32: 108 | V32: =SUM(V90+V123) -> 104 | W32: 97 | X32: 83 | Y32: 76 | Z32: 61 | AA32: 69 | AB32: =SUM(AB90+AB123) -> 64 | AC32: 64 | AD32: 66 | AE32: 67 | AF32: 60 | AG32: 57 | AH32: =SUM(AH90+AH123) -> 55 | AI32: 53 | AJ32: 47 | AK32: 43 | AL32: 42 | AM32: 42 | AN32: =SUM(AN90+AN123) -> 41 | AO32: 41 | AP32: 41 | AQ32: 39 | AR32: 35 | AS32: 31 | AT32: 26 | AU32: 26 | AV32: 24 | AW32: 21 | AX32: 18 | AY32: =SUM(AY90+AY123) -> 22 | AZ32: 19 | BA32: =SUM(BA90+BA123) -> 0
A33: Number of Properties in Possession | B33: 0 | C33: 0 | D33: 1 | E33: 0 | F33: 0 | G33: 0 | H33: 0 | I33: 1 | J33: =SUM(J89+J122) -> 1 | K33: 0 | L33: 1 | M33: 1 | N33: 2 | O33: 2 | P33: 3 | Q33: =SUM(Q89+Q122) -> 2 | R33: 2 | S33: 2 | T33: 2 | U33: 0 | V33: 0 | W33: =SUM(W89+W122) -> 0 | X33: 0 | Y33: 0 | Z33: 0 | AA33: 0 | AB33: 0 | AC33: =SUM(AC89+AC122) -> 2 | AD33: 2 | AE33: 1 | AF33: 1 | AG33: 0 | AH33: 0 | AI33: =SUM(AI89+AI122) -> 0 | AJ33: 1 | AK33: 1 | AL33: 1 | AM33: 0 | AN33: 0 | AO33: =SUM(AO89+AO122) -> 0 | AP33: 1 | AQ33: 1 | AR33: 0 | AS33: 0 | AT33: 0 | AU33: 0 | AV33: 1 | AW33: 0 | AX33: =SUM(AX89+AX122) -> 0 | AY33: 0 | AZ33: =SUM(AZ89+AZ122) -> 0 | BA33: 0
A34: Average Number of months (Possessions) in Arrears at the Sale Date | B34: 0 | C34: 0 | D34: 0 | E34: 12 | F34: 0 | G34: 0 | H34: 0 | I34: 0 | J34: 0 | K34: 12.39 | L34: 0 | M34: 0 | N34: 9.87 | O34: 11.55 | P34: 0 | Q34: 26.55 | R34: 0 | S34: 9 | T34: 0 | U34: 66.4 | V34: 0 | W34: 0 | X34: 0 | Y34: 0 | Z34: 0 | AA34: 0 | AB34: 0 | AC34: 0 | AD34: 0 | AE34: 14.94 | AF34: 10.7 | AG34: 7.02 | AH34: 0 | AI34: 0 | AJ34: 0 | AK34: 0 | AL34: 0 | AM34: 11.82 | AN34: 0 | AO34: 0 | AP34: 0 | AQ34: 0 | AR34: 19.54 | AS34: 0 | AT34: 0 | AU34: 0 | AV34: 0 | AW34: 11.15 | AX34: 0 | AY34: 0 | AZ34: 0 | BA34: 0
A35: Average Number of months (RoR) in Arrears at the Sale Date from Jan 06 | B35: 0 | C35: 0 | D35: 0 | E35: 0 | F35: 0 | G35: 5.23 | H35: 7.14 | I35: 4.85 | J35: 8.47 | K35: 6.9 | L35: 11.66 | M35: 11.48 | N35: 17.6 | O35: 11.54 | P35: 18.21 | Q35: 18.79 | R35: 25.45 | S35: 5.39 | T35: 16.54 | U35: 10.8 | V35: 29.77 | W35: 22.72 | X35: 21.34 | Y35: 5.46 | Z35: 1.31 | AA35: 32.8 | AB35: 5.79 | AC35: 29.65 | AD35: 5.84 | AE35: 6.15 | AF35: 4.43 | AG35: 1.13 | AH35: 0.97 | AI35: 0.26 | AJ35: 0.2 | AK35: 0 | AL35: 0 | AM35: 0.86 | AN35: 0 | AO35: 0 | AP35: 0 | AQ35: 0.55 | AR35: 0 | AS35: 0 | AT35: 2.6 | AU35: 0 | AV35: 0 | AW35: 9.29 | AX35: 0.86 | AY35: 1.32 | AZ35: 2.86 | BA35: 0
A36: Arrears excluding Receiver of Rent and Possession Cases (From 30/04/05)
A37: Performing Loans | B37: 0.9868 | C37: 0.983710986 | D37: 0.9894 | E37: 0.9884 | F37: 0.9905 | G37: 0.9904 | H37: 0.9889 | I37: 0.9917 | J37: 0.9924 | K37: 0.9931 | L37: 0.9933 | M37: 0.9885 | N37: 0.994 | O37: 0.9864 | P37: 0.9863 | Q37: 0.9879 | R37: 0.9762 | S37: 0.9732 | T37: 0.9828 | U37: 0.9816 | V37: 0.9829 | W37: 0.9795 | X37: 0.9898 | Y37: 0.9905 | Z37: 0.9833 | AA37: 0.9888 | AB37: 0.9834 | AC37: 0.9886 | AD37: 0.9905 | AE37: 0.9889 | AF37: 0.989 | AG37: 0.9845 | AH37: 0.991 | AI37: 0.9867 | AJ37: 0.9933 | AK37: 0.9973 | AL37: 0.9969 | AM37: 0.9982 | AN37: 0.9959 | AO37: 0.9962 | AP37: 0.9941308845 | AQ37: 0.9971851615 | AR37: 0.9985588408 | AS37: 0.9982257137 | AT37: 0.998485721 | AU37: 0.9983549138 | AV37: 0.9969428897 | AW37: 0.9972870437 | AX37: 0.9993426127 | AY37: 0.9978171963 | AZ37: 0.9976773167 | BA37: 0
A38: >1 to 2 months arrears | B38: 0.0045 | C38: 0.008979186985 | D38: 0.0059 | E38: 0.0065 | F38: 0.004 | G38: 0.0049 | H38: 0.0039 | I38: 0.0058 | J38: 0.0049 | K38: 0.0048 | L38: 0.0033 | M38: 0.009 | N38: 0.0051 | O38: 0.0095 | P38: 0.0075 | Q38: 0.0074 | R38: 0.0187 | S38: 0.0117 | T38: 0.0129 | U38: 0.0139 | V38: 0.0132 | W38: 0.0154 | X38: 0.0063 | Y38: 0.0067 | Z38: 0.0153 | AA38: 0.0083 | AB38: 0.0155 | AC38: 0.0092 | AD38: 0.0069 | AE38: 0.0097 | AF38: 0.009 | AG38: 0.0135 | AH38: 0.0077 | AI38: 0.0116 | AJ38: 0.0056 | AK38: 0.0002 | AL38: 0.002 | AM38: 0.0008 | AN38: 0.0031 | AO38: 0.0007 | AP38: 0.004864010697 | AQ38: 0.001592081548 | AR38: 0.0008641359686 | AS38: 0.0006437919523 | AT38: 5.763179628e-05 | AU38: 0.0008388933172 | AV38: 0.002687092388 | AW38: 0.0007934873717 | AX38: 0.0004923845265 | AY38: 0.001924373909 | AZ38: 0.0001883964327 | BA38: 0
A39: >2 to 3 months arrears | B39: 0.0021 | C39: 0.00225310202 | D39: 0.0023 | E39: 0.0025 | F39: 0.0026 | G39: 0.0032 | H39: 0.0032 | I39: 0.0014 | J39: 0.0013 | K39: 0.0008 | L39: 0.0009 | M39: 0.0003 | N39: 0.0005 | O39: 0.0036 | P39: 0.0053 | Q39: 0.0029 | R39: 0.0031 | S39: 0.0062 | T39: 0.0019 | U39: 0.0031 | V39: 0.0018 | W39: 0.0034 | X39: 0.0025 | Y39: 0.0016 | Z39: 0.0003 | AA39: 0.0022 | AB39: 0.0004 | AC39: 0.0018 | AD39: 0.0013 | AE39: 0.0005 | AF39: 0.0009 | AG39: 0.0007 | AH39: 0.0004 | AI39: 0.0006 | AJ39: 0.0002 | AK39: 0.0002 | AL39: 0.0001 | AM39: 0 | AN39: 0.0001 | AO39: 0.0002 | AP39: 0.0004093364589 | AQ39: 0.0007579785757 | AR39: 7.50712385e-05 | AS39: 0.0003365228787 | AT39: 0 | AU39: 0 | AV39: 0 | AW39: 0.0002195752906 | AX39: 0 | AY39: 0 | AZ39: 0.001803703195 | BA39: 0
A40: >3 months arrears | B40: 0.0066 | C40: 0.005056725017 | D40: 0.0024 | E40: 0.0026 | F40: 0.0029 | G40: 0.0015 | H40: 0.004 | I40: 0.0011 | J40: 0.0014 | K40: 0.0013 | L40: 0.0025 | M40: 0.0022 | N40: 0.0004 | O40: 0.0005 | P40: 0.0009 | Q40: 0.0018 | R40: 0.002 | S40: 0.0089 | T40: 0.0024 | U40: 0.0014 | V40: 0.0021 | W40: 0.0017 | X40: 0.0014 | Y40: 0.0012 | Z40: 0.0011 | AA40: 0.0007 | AB40: 0.0007 | AC40: 0.0004 | AD40: 0.0013 | AE40: 0.0009 | AF40: 0.0011 | AG40: 0.0013 | AH40: 0.0009 | AI40: 0.0011 | AJ40: 0.0009 | AK40: 0.0023 | AL40: 0.001 | AM40: 0.001 | AN40: 0.0009 | AO40: 0.0029 | AP40: 0.0005957683741 | AQ40: 0.0004647784112 | AR40: 0.0005019520114 | AS40: 0.0007939714509 | AT40: 0.001456647185 | AU40: 0.0008061928714 | AV40: 0.0003700179447 | AW40: 0.001699893685 | AX40: 0.0001650027717 | AY40: 0.0002584297732 | AZ40: 0.0003305836785 | BA40: 0
A41: Total | B41: =SUM(B37:B40) -> 1 | C41: 1 | D41: 1 | E41: 1 | F41: 1 | G41: 1 | H41: 1 | I41: 1 | J41: 1 | K41: 1 | L41: 1 | M41: 1 | N41: 1 | O41: 1 | P41: 1 | Q41: 1 | R41: 1 | S41: 1 | T41: 1 | U41: 1 | V41: 1 | W41: 1 | X41: 1 | Y41: 1 | Z41: 1 | AA41: 1 | AB41: 1 | AC41: 1 | AD41: 1 | AE41: =SUM(AE37:AE40) -> 1 | AF41: 1 | AG41: 1 | AH41: 1 | AI41: 1 | AJ41: 1 | AK41: =SUM(AK37:AK40) -> 1 | AL41: 1 | AM41: 1 | AN41: 1 | AO41: 1 | AP41: 1 | AQ41: 1 | AR41: 1 | AS41: 1 | AT41: 1 | AU41: 1 | AV41: 1 | AW41: 1 | AX41: 1 | AY41: 1 | AZ41: 1 | BA41: 0
A42: Total Value of Arrears (£000's) | B42: 318 | C42: 359 | D42: 342 | E42: 350 | F42: 427 | G42: 532 | H42: 639 | I42: 600 | J42: 619 | K42: 635 | L42: 502 | M42: 518 | N42: 458 | O42: 613 | P42: 489 | Q42: 453 | R42: 543 | S42: 635 | T42: 525 | U42: 494 | V42: 435 | W42: 388 | X42: 323 | Y42: 278 | Z42: 295 | AA42: 262 | AB42: 268 | AC42: 218 | AD42: 153 | AE42: 141 | AF42: 128 | AG42: 133 | AH42: 112 | AI42: 112 | AJ42: 95 | AK42: 96 | AL42: 88 | AM42: 83 | AN42: 82 | AO42: 86 | AP42: 77.07391894 | AQ42: 70.01232043 | AR42: 55.65590936 | AS42: 54.47152001 | AT42: 52.15072982 | AU42: 52.27258961 | AV42: 52.61163025 | AW42: 32.31291992 | AX42: 22.79320904 | AY42: 28.98788034 | AZ42: 27.16789055 | BA42: 0
A43: Total Value of Arrears as a % of the Notes Issued (£900,700,464) | B43: =+B42/900700 -> 0.0003530587321 | C43: =+C42/900700 -> 0.0003985788831 | D43: 0.0003797046741 | E43: 0.0003885866548 | F43: 0.0004740757189 | G43: 0.0005906517153 | H43: 0.000709448207 | I43: 0.0006661485511 | J43: 0.0006872432552 | K43: 0.0007050072166 | L43: 0.0005573442878 | M43: 0.0005751082491 | N43: 0.000508493394 | O43: 0.0006805817697 | P43: 0.0005429110692 | Q43: 0.0005029421561 | R43: 0.0006028644388 | S43: 0.0007050072166 | T43: 0.0005828799822 | U43: 0.0005484623071 | V43: 0.0004829576996 | W43: 0.0004307760631 | X43: 0.00035860997 | Y43: 0.0003086488287 | Z43: 0.0003275230376 | AA43: 0.0002908848673 | AB43: 0.0002975463528 | AC43: 0.0002420339736 | AD43: 0.0001698678805 | AE43: =+AE42/900700 -> 0.0001565449095 | AF43: 0.0001421116909 | AG43: 0.0001476629288 | AH43: 0.0001243477295 | AI43: 0.0001243477295 | AJ43: 0.0001054735206 | AK43: =+AK42/900700 -> 0.0001065837682 | AL43: 9.77017875e-05 | AM43: 9.215054957e-05 | AN43: 9.104030199e-05 | AO43: 9.548129233e-05 | AP43: =+AP42/900700 -> 8.557113238e-05 | AQ43: 7.773100969e-05 | AR43: 6.179183897e-05 | AS43: 6.047687355e-05 | AT43: 5.790022185e-05 | AU43: 5.803551639e-05 | AV43: 5.841193544e-05 | AW43: 3.587534131e-05 | AX43: 2.53061053e-05 | AY43: =+AY42/900700 -> 3.218372415e-05 | AZ43: 3.016308487e-05 | BA43: =+BA42/900700 -> 0
A45: Underlying Assets - Overall | B45: 2004-10-31 | C45: 2005-01-31 | D45: 2005-04-30 | E45: 2005-07-31 | F45: 2005-10-31 | G45: 2006-01-31 | H45: 2006-04-28 | I45: 2006-07-31 | J45: 2006-10-31 | K45: 2007-01-31 | L45: 2007-04-30 | M45: 2007-07-31 | N45: 2007-10-31 | O45: 2008-01-31 | P45: 2008-04-30 | Q45: 2008-07-31 | R45: 2008-10-31 | S45: 2009-01-30 | T45: 2009-04-30 | U45: 2009-07-31 | V45: 2009-10-30 | W45: 2010-01-29 | X45: 2010-04-30 | Y45: 2010-07-30 | Z45: 2010-10-29 | AA45: 2011-01-31 | AB45: 2011-04-28 | AC45: 2011-07-29 | AD45: 2011-10-31 | AE45: 2012-01-31 | AF45: 2012-04-30 | AG45: 2012-07-31 | AH45: 2012-10-31 | AI45: 2013-01-31 | AJ45: 2013-04-30 | AK45: 2013-07-31 | AL45: 2013-10-31 | AM45: 2014-01-31 | AN45: 2014-04-30 | AO45: 2014-07-31 | AP45: 2014-10-31 | AQ45: 2015-01-30 | AR45: 2015-04-30 | AS45: 2015-07-31 | AT45: =+AT5 -> 2015-10-30 | AU45: 2016-01-29 | AV45: 2016-04-29 | AW45: 2016-07-29 | AX45: 2016-10-31 | AY45: 2017-01-31 | AZ45: =+AZ5 -> 2017-04-28 | BA45: 2017-07-31
A46: Weighted Average LTV | B46: 0.7789 | C46: 0.7795 | D46: 0.7812 | E46: 0.7807 | F46: 0.7815 | G46: 0.7812 | H46: 0.7816 | I46: 0.7816 | J46: 0.7811 | K46: 0.7807 | L46: 0.7791 | M46: 0.7788 | N46: 0.7779 | O46: 0.7779 | P46: 0.7781 | Q46: 0.779 | R46: 0.778 | S46: 0.7776 | T46: 0.7773 | U46: 0.7775 | V46: 0.7777 | W46: 0.7775 | X46: 0.7772 | Y46: 0.7771 | Z46: 0.7772 | AA46: 0.777 | AB46: 0.7765 | AC46: 0.7762 | AD46: 0.776 | AE46: 0.7754 | AF46: 0.7756 | AG46: 0.7753 | AH46: 0.7754 | AI46: 0.7755 | AJ46: 0.7754 | AK46: 0.776 | AL46: 0.776 | AM46: 0.7755 | AN46: 0.7749 | AO46: 0.7744 | AP46: 0.7739693685 | AQ46: 0.7741234771 | AR46: 0.77465913 | AS46: 0.7740026479 | AT46: 0.7732321909 | AU46: 0.7733821724 | AV46: 0.7737812989 | AW46: 0.7733201033 | AX46: 0.7729176541 | AY46: 0.772816965 | AZ46: 0.7713163144 | BA46: 0
A47: Weighted Average Nationwide Indexed LTV | B47: 0.6611 | C47: 0.6663 | D47: 0.6806 | E47: 0.6712 | F47: 0.6544 | G47: 0.657 | H47: 0.6469 | I47: 0.6536 | J47: 0.6516 | K47: 0.6476 | L47: 0.6415 | M47: 0.6262 | N47: 0.6252 | O47: 0.6292 | P47: 0.6496 | Q47: 0.6757 | R47: 0.7279 | S47: 0.7566 | T47: 0.7948 | U47: 0.7778 | V47: 0.752 | W47: 0.7435 | X47: 0.7396 | Y47: 0.7214 | Z47: 0.7218 | AA47: 0.7401 | AB47: 0.7403 | AC47: 0.7254 | AD47: 0.7298 | AE47: 0.7365 | AF47: 0.7465 | AG47: 0.7371 | AH47: 0.7392 | AI47: 0.7479 | AJ47: 0.7466 | AK47: 0.7305 | AL47: 0.7145 | AM47: 0.7036 | AN47: 0.7052 | AO47: 0.677 | AP47: 0.6697212952 | AQ47: 0.6741550777 | AR47: 0.6708962171 | AS47: 0.6540990516 | AT47: 0.6536540884 | AU47: 0.6532778117 | AV47: 0.6519391778 | AW47: 0.633787851 | AX47: 0.63031747 | AY47: 0.6324220982 | AZ47: 0.632332639 | BA47: 0
A48: Weighted Average Halifax Indexed LTV | B48: 0.6707 | C48: 0.6731 | D48: 0.6794 | E48: 0.6539 | F48: 0.6593 | G48: 0.6464 | H48: 0.6378 | I48: 0.6443 | J48: 0.643 | K48: 0.6304 | L48: 0.6202 | M48: 0.6099 | N48: 0.6109 | O48: 0.6152 | P48: 0.6433 | Q48: 0.667 | R48: 0.7191 | S48: 0.7732 | T48: 0.7972 | U48: 0.8023 | V48: 0.7832 | W48: 0.7701 | X48: 0.7668 | Y48: 0.755 | Z48: 0.7658 | AA48: 0.7718 | AB48: 0.7898 | AC48: 0.7827 | AD48: 0.7756 | AE48: 0.7833 | AF48: 0.7836 | AG48: 0.7824 | AH48: 0.7881 | AI48: 0.7937 | AJ48: 0.7771 | AK48: 0.7556 | AL48: 0.743 | AM48: 0.7393 | AN48: 0.7339 | AO48: 0.7107 | AP48: 0.6909386414 | AQ48: 0.7007096343 | AR48: 0.6763547344 | AS48: 0.6463391583 | AT48: 0.6422983269 | AU48: 0.6472640658 | AV48: 0.6270028003 | AW48: 0.6065940638 | AX48: n/a | AY48: n/a | AZ48: n/a | BA48: n/a
A49: % of Variable Rate Mortgages | B49: 0.1571 | C49: 0.1542 | D49: 0.1494 | E49: 0.1469 | F49: 0.1454 | G49: 0.145 | H49: 0.1413 | I49: 0.0636 | J49: 0.0598 | K49: 0.0568 | L49: 0.0552 | M49: 0.0547 | N49: 0.0532 | O49: 0.053 | P49: 0.051 | Q49: 0.0498 | R49: 0.0475 | S49: 0.0444 | T49: 0.0602 | U49: 0.0568 | V49: 0.0539 | W49: 0.0502 | X49: 0.0488 | Y49: 0.0474 | Z49: 0.0465 | AA49: 0.0453 | AB49: 0.0441 | AC49: 0.0428 | AD49: 0.0416 | AE49: 0.0407 | AF49: 0.0392 | AG49: 0.0385 | AH49: 0.0376 | AI49: 0.0369 | AJ49: 0.036 | AK49: 0.0349 | AL49: 0.0334 | AM49: 0.0325 | AN49: 0.0317 | AO49: 0.0315 | AP49: 0.03150098108 | AQ49: 0.03135363428 | AR49: 0.03139994447 | AS49: 0.0312704246 | AT49: 0.03082030547 | AU49: 0.03041298146 | AV49: 0.02978034167 | AW49: 0.02937160074 | AX49: 0.02880211267 | AY49: 0.02789086682 | AZ49: 0.02806136923 | BA49: 0
A50: % of Fixed Rate Mortgages | B50: 0.144 | C50: 0.1468 | D50: 0.1523 | E50: 0.1537 | F50: 0.1553 | G50: 0.1566 | H50: 0.1593 | I50: 0.2552 | J50: 0.2676 | K50: 0.2858 | L50: 0.3075 | M50: 0.3089 | N50: 0.3474 | O50: 0.3573 | P50: 0.4154 | Q50: 0.4146 | R50: 0.3771 | S50: 0.359 | T50: 0.3296 | U50: 0.2522 | V50: 0.1904 | W50: 0.1878 | X50: 0.1145 | Y50: 0.0762 | Z50: 0.0726 | AA50: 0.0404 | AB50: 0.0342 | AC50: 0.0164 | AD50: 0.0147 | AE50: 0.0126 | AF50: 0.01 | AG50: 0.0096 | AH50: 0.0091 | AI50: 0.0091 | AJ50: 0.0082 | AK50: 0 | AL50: 0 | AM50: 0 | AN50: 0 | AO50: 0 | AP50: 0 | AQ50: 0 | AR50: 0 | AS50: 0 | AT50: 0 | AU50: 0 | AV50: 0 | AW50: 0 | AX50: 0 | AY50: 0 | AZ50: 0 | BA50: 0
A51: % of Base Rate Mortgages | B51: 0.0912 | C51: 0.0929 | D51: 0.0944 | E51: 0.0951 | F51: 0.0962 | G51: 0.0966 | H51: 0.0982 | I51: 0.1321 | J51: 0.1315 | K51: 0.1417 | L51: 0.1517 | M51: 0.1549 | N51: 0.171 | O51: 0.1764 | P51: 0.1776 | Q51: 0.1761 | R51: 0.1776 | S51: 0.1794 | T51: 0.1826 | U51: 0.1826 | V51: 0.1834 | W51: 0.1847 | X51: 0.1851 | Y51: 0.1857 | Z51: 0.1855 | AA51: 0.186 | AB51: 0.1852 | AC51: 0.1855 | AD51: 0.1863 | AE51: 0.1866 | AF51: 0.1872 | AG51: 0.1876 | AH51: 0.1878 | AI51: 0.1883 | AJ51: 0.1891 | AK51: 0.19 | AL51: 0.1906 | AM51: 0.1913 | AN51: 0.1915 | AO51: 0.1922 | AP51: 0.191879955 | AQ51: 0.1903652189 | AR51: 0.190000446 | AS51: 0.1900376098 | AT51: 0.1916184734 | AU51: 0.1907656476 | AV51: 0.1910251133 | AW51: 0.1913020501 | AX51: 0.1914988292 | AY51: 0.1921329437 | AZ51: 0.1931257862 | BA51: 0
A52: % of Libor Linked Mortgages | B52: 0.6076 | C52: 0.606 | D52: 0.6038 | E52: 0.6043 | F52: 0.6031 | G52: 0.6019 | H52: 0.6011 | I52: 0.5491 | J52: 0.541 | K52: 0.5156 | L52: 0.4855 | M52: 0.4816 | N52: 0.4284 | O52: 0.4133 | P52: 0.356 | Q52: 0.3594 | R52: 0.3978 | S52: 0.4172 | T52: 0.4277 | U52: 0.5084 | V52: 0.5722 | W52: 0.5774 | X52: 0.6516 | Y52: 0.6907 | Z52: 0.6954 | AA52: 0.7283 | AB52: 0.7366 | AC52: 0.7553 | AD52: 0.7574 | AE52: 0.7601 | AF52: 0.7636 | AG52: 0.7644 | AH52: 0.7654 | AI52: 0.7657 | AJ52: 0.7667 | AK52: 0.7752 | AL52: 0.776 | AM52: 0.7762 | AN52: 0.7767 | AO52: 0.7763 | AP52: 0.7766190639 | AQ52: 0.7782811468 | AR52: 0.7785996095 | AS52: 0.7786919656 | AT52: 0.7775612211 | AU52: 0.778821371 | AV52: 0.779194545 | AW52: 0.7793263492 | AX52: 0.7796990581 | AY52: 0.7799761894 | AZ52: 0.7788128446 | BA52: 0
A53: Weighted Average Loan Size | B53: 90424 | C53: 91742 | D53: 92370.21 | E53: 92947.78 | F53: 94029 | G53: 95147.33 | H53: 96028.68 | I53: 93731.42 | J53: 94220.11 | K53: 95195.8 | L53: 96697.71 | M53: 101700.52 | N53: 102480.44 | O53: 102986.19 | P53: 104486.38 | Q53: 106137.69 | R53: 107701.87 | S53: 108888.99 | T53: 109899.13 | U53: 110580.6 | V53: 111153.9 | W53: 111369.79 | X53: 111532.91 | Y53: 111850.87 | Z53: 111966.34 | AA53: 112142.82 | AB53: 112303.4 | AC53: 112760.28 | AD53: 112634.83 | AE53: 112802.76 | AF53: 113038.38 | AG53: 113075.98 | AH53: 112961.64 | AI53: 113267.69 | AJ53: 113702.75 | AK53: 114402.5 | AL53: 114793.85 | AM53: 115384.71 | AN53: 115564.4 | AO53: 115712.59 | AP53: 115517.7586 | AQ53: 115703.0254 | AR53: 115585.542 | AS53: 115832.9876 | AT53: 116051.7206 | AU53: 116035.0135 | AV53: 116176.5846 | AW53: 116439.9712 | AX53: 117295.2524 | AY53: 117604.5901 | AZ53: 117625.8796 | BA53: 0
A54: Weighted Average Interest Rate | B54: 0.06302 | C54: 0.06317 | D54: 0.06374 | E54: 0.06276 | F54: 0.0609 | G54: 0.06104 | H54: 0.0608 | I54: 0.06069 | J54: 0.06259 | K54: 0.06414 | L54: 0.06554 | M54: 0.06784 | N54: 0.06876 | O54: 0.06649 | P54: 0.06508 | Q54: 0.06449 | R54: 0.06637 | S54: 0.04683 | T54: 0.03945 | U54: 0.03488 | V54: 0.02994 | W54: 0.03011 | X54: 0.028 | Y54: 0.02731 | Z54: 0.02717 | AA54: 0.02631 | AB54: 0.02679 | AC54: 0.02631 | AD54: 0.02703 | AE54: 0.02781 | AF54: 0.02762 | AG54: 0.02624 | AH54: 0.02386 | AI54: 0.02365 | AJ54: 0.02358 | AK54: 0.0233 | AL54: 0.02324 | AM54: 0.02322 | AN54: 0.02328 | AO54: 0.02333 | AP54: 0.0234800464 | AQ54: 0.023482748 | AR54: 0.02350597665 | AS54: 0.02350393821 | AT54: 0.02351014186 | AU54: 0.02353980786 | AV54: 0.02352949248 | AW54: 0.0234015802 | AX54: 0.0214608258 | AY54: 0.02130396043 | AZ54: 0.0213036699 | BA54: 0
A55: Weighted Average Maturity Date (years) | B55: 20.78 | C55: 20.65 | D55: 20.48 | E55: 20.26 | F55: 20.06 | G55: 19.82 | H55: 19.58 | I55: 19.36 | J55: 19.2 | K55: 19.01 | L55: 18.74 | M55: 18.56 | N55: 18.32 | O55: 18.04 | P55: 17.77 | Q55: 17.54 | R55: 17.32 | S55: 17.15 | T55: 16.96 | U55: 16.78 | V55: 16.56 | W55: 16.33 | X55: 16.09 | Y55: 15.85 | Z55: 15.64 | AA55: 15.41 | AB55: 15.18 | AC55: 14.95 | AD55: 14.73 | AE55: 14.5 | AF55: 14.28 | AG55: 14.05 | AH55: 13.82 | AI55: 13.59 | AJ55: 13.36 | AK55: 13.16 | AL55: 12.98 | AM55: 12.79 | AN55: 12.57 | AO55: 12.34 | AP55: 12.12798386 | AQ55: 11.89997511 | AR55: 11.6536668 | AS55: 11.46114174 | AT55: 11.23651846 | AU55: 11.01495841 | AV55: 10.7952456 | AW55: 10.56740931 | AX55: 10.31563469 | AY55: 10.1026246 | AZ55: 9.866961418 | BA55: 0
A56: Weighted Average Seasoning (months) | B56: 19.88 | C56: 21.69 | D56: 24.84 | E56: 28.27 | F56: 31.15 | G56: 34.23 | H56: 36.43 | I56: 39.32 | J56: 42.09 | K56: 44.82 | L56: 47.95 | M56: 51.37 | N56: 54.58 | O56: 57.75 | P56: 60.77 | Q56: 63.74 | R56: 66.55 | S56: 69.37 | T56: 72.26 | U56: 75.13 | V56: 78.04 | W56: 80.97 | X56: 83.9 | Y56: 86.82 | Z56: 89.82 | AA56: 92.76 | AB56: 95.61 | AC56: 98.55 | AD56: 101.49 | AE56: 104.43 | AF56: 107.23 | AG56: 110.15 | AH56: 113.06 | AI56: 115.97 | AJ56: 118.85 | AK56: 121.74 | AL56: 124.48 | AM56: 127.37 | AN56: 130.25 | AO56: 133.25 | AP56: 136.1737339 | AQ56: 139.1425397 | AR56: 142.0430482 | AS56: 144.9450407 | AT56: 147.8593656 | AU56: 150.8210623 | AV56: 153.7784866 | AW56: 156.8210293 | AX56: 159.6863006 | AY56: 162.5483057 | AZ56: 165.4736159 | BA56: 0
A57: % of Interest Only Mortgages | B57: 0.8542 | C57: 0.8638 | D57: 0.8701 | E57: 0.8735 | F57: 0.8766 | G57: 0.8779 | H57: 0.8795 | I57: 0.8826 | J57: 0.8833 | K57: 0.8844 | L57: 0.8852 | M57: 0.8844 | N57: 0.8874 | O57: 0.8905 | P57: 0.895 | Q57: 0.9002 | R57: 0.9044 | S57: 0.9099 | T57: 0.9153 | U57: 0.9184 | V57: 0.9198 | W57: 0.9212 | X57: 0.9233 | Y57: 0.9253 | Z57: 0.9274 | AA57: 0.9283 | AB57: 0.9286 | AC57: 0.93 | AD57: 0.9319 | AE57: 0.9332 | AF57: 0.9346 | AG57: 0.9375 | AH57: 0.9387 | AI57: 0.9402 | AJ57: 0.943 | AK57: 0.9439 | AL57: 0.9455 | AM57: 0.9468 | AN57: 0.9472 | AO57: 0.9482 | AP57: 0.949795922 | AQ57: 0.9514983533 | AR57: 0.9534825929 | AS57: 0.9540707581 | AT57: 0.9565313929 | AU57: 0.9574567991 | AV57: 0.9580135897 | AW57: 0.9591089306 | AX57: 0.9611834633 | AY57: 0.9619672216 | AZ57: 0.9631884427 | BA57: 0
A58: % of Repayment Mortgages | B58: 0.1458 | C58: 0.1362 | D58: 0.1299 | E58: 0.1265 | F58: 0.1234 | G58: 0.1221 | H58: 0.1205 | I58: 0.1174 | J58: 0.1167 | K58: 0.1156 | L58: 0.1148 | M58: 0.1156 | N58: 0.1126 | O58: 0.1095 | P58: 0.105 | Q58: 0.0998 | R58: 0.0956 | S58: 0.0901 | T58: 0.0847 | U58: 0.0816 | V58: 0.0802 | W58: 0.0788 | X58: 0.0767 | Y58: 0.0747 | Z58: 0.0726 | AA58: 0.0717 | AB58: 0.0714 | AC58: 0.07 | AD58: 0.0681 | AE58: 0.0668 | AF58: 0.0654 | AG58: 0.0625 | AH58: 0.0613 | AI58: 0.0598 | AJ58: 0.057 | AK58: 0.0561 | AL58: 0.0545 | AM58: 0.0532 | AN58: 0.0528 | AO58: 0.0518 | AP58: 0.05020407803 | AQ58: 0.04850164665 | AR58: 0.04651740707 | AS58: 0.04592924186 | AT58: 0.04346860708 | AU58: 0.04254320094 | AV58: 0.04198641033 | AW58: 0.04089106937 | AX58: 0.03881653671 | AY58: 0.03803277841 | AZ58: 0.0368115573 | BA58: 0
A59: % of Mortgages in London | B59: 0.1604 | C59: 0.1592 | D59: 0.1599 | E59: 0.1607 | F59: 0.1608 | G59: 0.1618 | H59: 0.1591 | I59: 0.1593 | J59: 0.1584 | K59: 0.1565 | L59: 0.1547 | M59: 0.1464 | N59: 0.147 | O59: 0.1441 | P59: 0.1419 | Q59: 0.14 | R59: 0.1393 | S59: 0.138 | T59: 0.138 | U59: 0.138 | V59: 0.1391 | W59: 0.1388 | X59: 0.1388 | Y59: 0.1398 | Z59: 0.1396 | AA59: 0.1392 | AB59: 0.1367 | AC59: 0.1373 | AD59: 0.1364 | AE59: 0.1358 | AF59: 0.1357 | AG59: 0.1358 | AH59: 0.1347 | AI59: 0.1346 | AJ59: 0.135 | AK59: 0.1354 | AL59: 0.1367 | AM59: 0.1365 | AN59: 0.1346 | AO59: 0.1347 | AP59: 0.1362593779 | AQ59: 0.1354731355 | AR59: 0.1354671092 | AS59: 0.1353698431 | AT59: 0.1356883586 | AU59: 0.1358994759 | AV59: 0.1341502595 | AW59: 0.1317036536 | AX59: 0.1344954215 | AY59: 0.1343636208 | AZ59: 0.1322052411 | BA59: 0
A60: % of Mortgages in the South East | B60: 0.2373 | C60: 0.2356 | D60: 0.2364 | E60: 0.2339 | F60: 0.2312 | G60: 0.2319 | H60: 0.2339 | I60: 0.2326 | J60: 0.2325 | K60: 0.2345 | L60: 0.2326 | M60: 0.2338 | N60: 0.2347 | O60: 0.23 | P60: 0.23 | Q60: 0.2299 | R60: 0.2295 | S60: 0.2306 | T60: 0.2303 | U60: 0.2313 | V60: 0.2311 | W60: 0.2324 | X60: 0.2335 | Y60: 0.234 | Z60: 0.2336 | AA60: 0.234 | AB60: 0.2345 | AC60: 0.234 | AD60: 0.2349 | AE60: 0.235 | AF60: 0.2341 | AG60: 0.2348 | AH60: 0.2346 | AI60: 0.2346 | AJ60: 0.2337 | AK60: 0.2316 | AL60: 0.2282 | AM60: 0.2279 | AN60: 0.228 | AO60: 0.228 | AP60: 0.2242305297 | AQ60: 0.2227613759 | AR60: 0.2214025325 | AS60: 0.221571944 | AT60: 0.2220725883 | AU60: 0.2200810197 | AV60: 0.2207526411 | AW60: 0.2225131456 | AX60: 0.2215034419 | AY60: 0.2204129139 | AZ60: 0.2194595093 | BA60: 0
A61: % of Owner Occupied Mortgages | B61: 0.014 | C61: 0.0137 | D61: 0.0128 | E61: 0.0121 | F61: 0.0118 | G61: 0.0123 | H61: 0.0116 | I61: 0.0106 | J61: 0.0098 | K61: 0.0099 | L61: 0.0095 | M61: 0.0093 | N61: 0.0094 | O61: 0.0094 | P61: 0.0097 | Q61: 0.0098 | R61: 0.0098 | S61: 0.0097 | T61: 0.0095 | U61: 0.0093 | V61: 0.0091 | W61: 0.0087 | X61: 0.0086 | Y61: 0.0084 | Z61: 0.0082 | AA61: 0.008 | AB61: 0.008 | AC61: 0.0077 | AD61: 0.0075 | AE61: 0.0074 | AF61: 0.0072 | AG61: 0.0071 | AH61: 0.007 | AI61: 0.0068 | AJ61: 0.0067 | AK61: 0.0059 | AL61: 0.0058 | AM61: 0.0054 | AN61: 0.0054 | AO61: 0.0054 | AP61: 0.005350625418 | AQ61: 0.005267192023 | AR61: 0.005240311195 | AS61: 0.005247989833 | AT61: 0.005095530232 | AU61: 0.005030623248 | AV61: 0.004829030028 | AW61: 0.004714670038 | AX61: 0.004684664804 | AY61: 0.004534743249 | AZ61: 0.004517085521 | BA61: 0
A62: % of Investment Home Loans - Professional Landlords | B62: 0.748 | C62: 0.7517 | D62: 0.7544 | E62: 0.7552 | F62: 0.7558 | G62: 0.7548 | H62: 0.7569 | I62: 0.7603 | J62: 0.7621 | K62: 0.7631 | L62: 0.7716 | M62: 0.782 | N62: 0.7912 | O62: 0.793 | P62: 0.7946 | Q62: 0.7966 | R62: 0.7982 | S62: 0.7992 | T62: 0.8017 | U62: 0.8021 | V62: 0.8034 | W62: 0.8054 | X62: 0.8055 | Y62: 0.8074 | Z62: 0.8086 | AA62: 0.8089 | AB62: 0.8094 | AC62: 0.8099 | AD62: 0.8111 | AE62: 0.8111 | AF62: 0.8116 | AG62: 0.812 | AH62: 0.8123 | AI62: 0.8125 | AJ62: 0.8131 | AK62: 0.8142 | AL62: 0.8141 | AM62: 0.8153 | AN62: 0.8173 | AO62: 0.8184 | AP62: 0.8183654006 | AQ62: 0.8203861065 | AR62: 0.8205911803 | AS62: 0.8201705955 | AT62: 0.8203347419 | AU62: 0.8226620941 | AV62: 0.8223891504 | AW62: 0.8224579233 | AX62: 0.8230072242 | AY62: 0.8223154649 | AZ62: 0.8235037028 | BA62: 0
A63: % of Investment Home Loans - Emerging Professional Landlords | B63: 0.238 | C63: 0.2346 | D63: 0.2328 | E63: 0.2326 | F63: 0.2324 | G63: 0.2329 | H63: 0.2315 | I63: 0.2291 | J63: 0.2281 | K63: 0.227 | L63: 0.2189 | M63: 0.2086 | N63: 0.1993 | O63: 0.1976 | P63: 0.1958 | Q63: 0.1936 | R63: 0.192 | S63: 0.1911 | T63: 0.1888 | U63: 0.1886 | V63: 0.1876 | W63: 0.1859 | X63: 0.1859 | Y63: 0.1842 | Z63: 0.1832 | AA63: 0.1831 | AB63: 0.1826 | AC63: 0.1823 | AD63: 0.1815 | AE63: 0.1816 | AF63: 0.1811 | AG63: 0.1809 | AH63: 0.1807 | AI63: 0.1807 | AJ63: 0.1802 | AK63: 0.1799 | AL63: 0.1801 | AM63: 0.1793 | AN63: 0.1772 | AO63: 0.1762 | AP63: 0.176283974 | AQ63: 0.1743467014 | AR63: 0.1741685085 | AS63: 0.1745814146 | AT63: 0.1745697278 | AU63: 0.1723072826 | AV63: 0.1727818196 | AW63: 0.1728274067 | AX63: 0.172308111 | AY63: 0.1731497918 | AZ63: 0.1719792116 | BA63: 0
A64: Weighted Average Interest Coverage Ratio (calculated at the origination date) | B64: 1.93 | C64: 1.92 | D64: 1.92 | E64: 1.92 | F64: 1.92 | G64: 1.92 | H64: 1.92 | I64: 1.92 | J64: 1.93 | K64: 1.93 | L64: 1.94 | M64: 1.93 | N64: 1.93 | O64: 1.93 | P64: 1.92 | Q64: 1.91 | R64: 1.91 | S64: 1.91 | T64: 1.91 | U64: 1.91 | V64: 1.9 | W64: 1.9 | X64: 1.9 | Y64: 1.9 | Z64: 1.9 | AA64: 1.9 | AB64: 1.9 | AC64: 1.9 | AD64: 1.9 | AE64: 1.9 | AF64: 1.89 | AG64: 1.89 | AH64: 1.89 | AI64: 1.89 | AJ64: 1.89 | AK64: 1.88 | AL64: 1.88 | AM64: 1.88 | AN64: 1.88 | AO64: 1.88 | AP64: 1.881706458 | AQ64: 1.88015115 | AR64: 1.879578069 | AS64: 1.875405313 | AT64: 1.873538577 | AU64: 1.874421878 | AV64: 1.87518962 | AW64: 1.875816716 | AX64: 1.873577535 | AY64: 1.873071199 | AZ64: 1.874561636 | BA64: 0
A65: % of Paragon Originated Assets | B65: 0.9369 | C65: 0.9358 | D65: 0.9355 | E65: 0.9381 | F65: 0.9389 | G65: 0.9393 | H65: 0.9405 | I65: 0.9433 | J65: 0.9443 | K65: 0.9455 | L65: 0.9475 | M65: 0.9489 | N65: 0.9479 | O65: 0.9512 | P65: 0.9525 | Q65: 0.9543 | R65: 0.9553 | S65: 0.956 | T65: 0.9564 | U65: 0.9566 | V65: 0.9562 | W65: 0.9564 | X65: 0.9565 | Y65: 0.9567 | Z65: 0.9567 | AA65: 0.9566 | AB65: 0.9571 | AC65: 0.9576 | AD65: 0.9579 | AE65: 0.9581 | AF65: 0.9577 | AG65: 0.9582 | AH65: 0.9586 | AI65: 0.9584 | AJ65: 0.9593 | AK65: 0.9593 | AL65: 0.9591 | AM65: 0.9602 | AN65: 0.9604 | AO65: 0.9604 | AP65: 0.9605050097 | AQ65: 0.9605419448 | AR65: 0.9602887411 | AS65: 0.960372219 | AT65: 0.9607876554 | AU65: 0.9609159304 | AV65: 0.9612152833 | AW65: 0.9618905162 | AX65: 0.963582792 | AY65: 0.963596057 | AZ65: 0.964445446 | BA65: 0
A66: % of Mortgage Trust Originated Assets | B66: 0.0631 | C66: 0.0642 | D66: 0.0645 | E66: 0.0619 | F66: 0.0611 | G66: 0.0607 | H66: 0.0595 | I66: 0.0567 | J66: 0.0557 | K66: 0.0545 | L66: 0.0525 | M66: 0.0511 | N66: 0.0521 | O66: 0.0488 | P66: 0.0475 | Q66: 0.0457 | R66: 0.0447 | S66: 0.044 | T66: 0.0436 | U66: 0.0434 | V66: 0.0438 | W66: 0.0436 | X66: 0.0435 | Y66: 0.0433 | Z66: 0.0433 | AA66: 0.0434 | AB66: 0.0429 | AC66: 0.0424 | AD66: 0.0421 | AE66: 0.0419 | AF66: 0.0423 | AG66: 0.0418 | AH66: 0.0414 | AI66: 0.0416 | AJ66: 0.0407 | AK66: 0.0407 | AL66: 0.0409 | AM66: 0.0398 | AN66: 0.0396 | AO66: 0.0396 | AP66: 0.03949499026 | AQ66: 0.0394580552 | AR66: 0.03971125892 | AS66: 0.03962778099 | AT66: 0.03921234461 | AU66: 0.0390840696 | AV66: 0.03878471675 | AW66: 0.03810948383 | AX66: 0.03641720805 | AY66: 0.036403943 | AZ66: 0.03555455395 | BA66: 0
A68: Underlying Assets - Paragon Originated Assets | B68: 2004-10-31 | C68: 2005-01-31 | D68: 2005-04-30 | E68: 2005-07-31 | F68: 2005-10-31 | G68: 2006-01-31 | H68: 2006-04-28 | I68: 2006-07-31 | J68: 2006-10-31 | K68: 2007-01-31 | L68: 2007-04-30 | M68: 2007-07-31 | N68: 2007-10-31 | O68: 2008-01-31 | P68: 2008-04-30 | Q68: 2008-07-31 | R68: 2008-10-31 | S68: 2009-01-30 | T68: 2009-04-30 | U68: 2009-07-31 | V68: 2009-10-30 | W68: 2010-01-29 | X68: 2010-04-30 | Y68: 2010-07-30 | Z68: 2010-10-29 | AA68: 2011-01-31 | AB68: 2011-04-28 | AC68: 2011-07-29 | AD68: 2011-10-31 | AE68: 2012-01-31 | AF68: 2012-04-30 | AG68: 2012-07-31 | AH68: 2012-10-31 | AI68: 2013-01-31 | AJ68: 2013-04-30 | AK68: 2013-07-31 | AL68: 2013-10-31 | AM68: 2014-01-31 | AN68: 2014-04-30 | AO68: 2014-07-31 | AP68: 2014-10-31 | AQ68: 2015-01-30 | AR68: 2015-04-30 | AS68: 2015-07-31 | AT68: =+AT45 -> 2015-10-30 | AU68: =+AU45 -> 2016-01-29 | AV68: =+AV45 -> 2016-04-29 | AW68: 2016-07-31 | AX68: =+AX45 -> 2016-10-31 | AY68: =+AY45 -> 2017-01-31 | AZ68: =+AZ45 -> 2017-04-28 | BA68: =+BA45 -> 2017-07-31
A69: Weighted Average LTV | B69: 0.7786 | C69: 0.7788 | D69: 0.7805 | E69: 0.7805 | F69: 0.7814 | G69: 0.7811 | H69: 0.7817 | I69: 0.7818 | J69: 0.7814 | K69: 0.7809 | L69: 0.7793 | M69: 0.7792 | N69: 0.7783 | O69: 0.7783 | P69: 0.7786 | Q69: 0.7792 | R69: 0.7782 | S69: 0.7778 | T69: 0.7777 | U69: 0.7779 | V69: 0.778 | W69: 0.7779 | X69: 0.7776 | Y69: 0.7775 | Z69: 0.7775 | AA69: 0.7773 | AB69: 0.7769 | AC69: 0.7765 | AD69: 0.7764 | AE69: 0.7756 | AF69: 0.7757 | AG69: 0.7755 | AH69: 0.7756 | AI69: 0.7756 | AJ69: 0.7756 | AK69: 0.7762 | AL69: 0.7762 | AM69: 0.7757 | AN69: 0.7751 | AO69: 0.7746 | AP69: 0.7742195935 | AQ69: 0.7743902728 | AR69: 0.7749318451 | AS69: 0.7742633045 | AT69: 0.7733647735 | AU69: 0.7734314727 | AV69: 0.7739816627 | AW69: 0.7735633847 | AX69: 0.7729247428 | AY69: 0.7728560246 | AZ69: 0.7713731128 | BA69: 0
A70: Weighted Average Nationwide Indexed LTV | B70: 0.6554 | C70: 0.6603 | D70: 0.6753 | E70: 0.6658 | F70: 0.6488 | G70: 0.6522 | H70: 0.6424 | I70: 0.6527 | J70: 0.6509 | K70: 0.6475 | L70: 0.6418 | M70: 0.6269 | N70: 0.6264 | O70: 0.6305 | P70: 0.6512 | Q70: 0.6773 | R70: 0.7292 | S70: 0.7581 | T70: 0.7965 | U70: 0.7803 | V70: 0.7546 | W70: 0.7462 | X70: 0.7424 | Y70: 0.7239 | Z70: 0.7246 | AA70: 0.7429 | AB70: 0.7431 | AC70: 0.7282 | AD70: 0.7326 | AE70: 0.7392 | AF70: 0.7492 | AG70: 0.7397 | AH70: 0.7419 | AI70: 0.7506 | AJ70: 0.7494 | AK70: 0.7333 | AL70: 0.7173 | AM70: 0.7065 | AN70: 0.7087 | AO70: 0.6805 | AP70: 0.6732273639 | AQ70: 0.6778327487 | AR70: 0.6744842864 | AS70: 0.6577420137 | AT70: 0.6573479468 | AU70: 0.6570330714 | AV70: 0.6558361712 | AW70: 0.637658338 | AX70: 0.6338542643 | AY70: 0.6360353764 | AZ70: 0.6357654784 | BA70: 0
A71: Weighted Average Halifax Indexed LTV | B71: 0.6648 | C71: 0.6669 | D71: 0.674 | E71: 0.6487 | F71: 0.6548 | G71: 0.6414 | H71: 0.6332 | I71: 0.6431 | J71: 0.6419 | K71: 0.6301 | L71: 0.6203 | M71: 0.6106 | N71: 0.6121 | O71: 0.6165 | P71: 0.6449 | Q71: 0.6684 | R71: 0.7206 | S71: 0.7749 | T71: 0.799 | U71: 0.8049 | V71: 0.7856 | W71: 0.7727 | X71: 0.7695 | Y71: 0.7577 | Z71: 0.7686 | AA71: 0.7743 | AB71: 0.7927 | AC71: 0.7854 | AD71: 0.7783 | AE71: 0.7859 | AF71: 0.7861 | AG71: 0.7849 | AH71: 0.791 | AI71: 0.7963 | AJ71: 0.7797 | AK71: 0.758 | AL71: 0.7455 | AM71: 0.7419 | AN71: 0.737 | AO71: 0.7137 | AP71: 0.6942388715 | AQ71: 0.7041404363 | AR71: 0.6793095009 | AS71: 0.6493455654 | AT71: 0.6455251432 | AU71: 0.6504994921 | AV71: 0.630329767 | AW71: 0.6097681587 | AX71: n/a | AY71: n/a | AZ71: n/a | BA71: n/a
A72: % of Variable Rate Mortgages | B72: 0.1677 | C72: 0.1648 | D72: 0.1598 | E72: 0.1566 | F72: 0.1548 | G72: 0.1544 | H72: 0.1503 | I72: 0.0674 | J72: 0.0634 | K72: 0.0601 | L72: 0.0583 | M72: 0.0577 | N72: 0.0561 | O72: 0.0557 | P72: 0.0535 | Q72: 0.0522 | R72: 0.0498 | S72: 0.0464 | T72: 0.0629 | U72: 0.0594 | V72: 0.0564 | W72: 0.0525 | X72: 0.051 | Y72: 0.0495 | Z72: 0.0486 | AA72: 0.0473 | AB72: 0.046 | AC72: 0.0447 | AD72: 0.0434 | AE72: 0.0425 | AF72: 0.0409 | AG72: 0.0401 | AH72: 0.0393 | AI72: 0.0385 | AJ72: 0.0376 | AK72: 0.0363 | AL72: 0.0348 | AM72: 0.0338 | AN72: 0.033 | AO72: 0.0328 | AP72: 0.03279626942 | AQ72: 0.03264160868 | AR72: 0.03269844071 | AS72: 0.03256073424 | AT72: 0.03207816556 | AU72: 0.03164999195 | AV72: 0.03098196855 | AW72: 0.03053528468 | AX72: 0.02989064656 | AY72: 0.02894456304 | AZ72: 0.02909585954 | BA72: 0
A73: % of Fixed Rate Mortgages | B73: 0.1307 | C73: 0.1335 | D73: 0.1393 | E73: 0.1436 | F73: 0.1468 | G73: 0.1492 | H73: 0.1522 | I73: 0.2569 | J73: 0.2704 | K73: 0.2856 | L73: 0.3087 | M73: 0.3093 | N73: 0.3485 | O73: 0.3552 | P73: 0.4141 | Q73: 0.4123 | R73: 0.3755 | S73: 0.3592 | T73: 0.3295 | U73: 0.2518 | V73: 0.1883 | W73: 0.1866 | X73: 0.1157 | Y73: 0.0776 | Z73: 0.0738 | AA73: 0.0409 | AB73: 0.0345 | AC73: 0.0162 | AD73: 0.0149 | AE73: 0.0127 | AF73: 0.01 | AG73: 0.0095 | AH73: 0.0091 | AI73: 0.0091 | AJ73: 0.0081 | AK73: 0 | AL73: 0 | AM73: 0 | AN73: 0 | AO73: 0 | AP73: 0 | AQ73: 0 | AR73: 0 | AS73: 0 | AT73: 0 | AU73: 0 | AV73: 0 | AW73: 0 | AX73: 0 | AY73: 0 | AZ73: 0 | BA73: 0
A74: % of Base Rate Mortgages | B74: 0.0973 | C74: 0.0993 | D74: 0.1009 | E74: 0.1014 | F74: 0.1024 | G74: 0.1028 | H74: 0.1044 | I74: 0.14 | J74: 0.1393 | K74: 0.1498 | L74: 0.16 | M74: 0.1617 | N74: 0.1786 | O74: 0.1837 | P74: 0.1843 | Q74: 0.1833 | R74: 0.1846 | S74: 0.1863 | T74: 0.1896 | U74: 0.1896 | V74: 0.1905 | W74: 0.1917 | X74: 0.1925 | Y74: 0.1931 | Z74: 0.1929 | AA74: 0.1934 | AB74: 0.1924 | AC74: 0.1927 | AD74: 0.1934 | AE74: 0.1937 | AF74: 0.1944 | AG74: 0.1947 | AH74: 0.1949 | AI74: 0.1954 | AJ74: 0.196 | AK74: 0.1969 | AL74: 0.1977 | AM74: 0.1983 | AN74: 0.1985 | AO74: 0.1992 | AP74: 0.1987953838 | AQ74: 0.1972048218 | AR74: 0.196866995 | AS74: 0.1968795536 | AT74: 0.1984326718 | AU74: 0.1975107032 | AV74: 0.1977042555 | AW74: 0.1978449362 | AX74: 0.1976975764 | AY74: 0.1983467515 | AZ74: 0.1991876031 | BA74: 0
A75: % of Libor Linked Mortgages | B75: 0.6043 | C75: 0.6023 | D75: 0.5999 | E75: 0.5984 | F75: 0.5959 | G75: 0.5936 | H75: 0.5931 | I75: 0.5357 | J75: 0.5269 | K75: 0.5045 | L75: 0.473 | M75: 0.4713 | N75: 0.4168 | O75: 0.4053 | P75: 0.3482 | Q75: 0.3522 | R75: 0.3901 | S75: 0.4081 | T75: 0.418 | U75: 0.4992 | V75: 0.5647 | W75: 0.5692 | X75: 0.6409 | Y75: 0.6797 | Z75: 0.6847 | AA75: 0.7183 | AB75: 0.7271 | AC75: 0.7464 | AD75: 0.7482 | AE75: 0.7511 | AF75: 0.7546 | AG75: 0.7556 | AH75: 0.7568 | AI75: 0.757 | AJ75: 0.7584 | AK75: 0.7667 | AL75: 0.7675 | AM75: 0.7679 | AN75: 0.7685 | AO75: 0.768 | AP75: 0.7684083468 | AQ75: 0.7701535695 | AR75: 0.7704345642 | AS75: 0.7705597121 | AT75: 0.7694891626 | AU75: 0.7708393049 | AV75: 0.771313776 | AW75: 0.7716197792 | AX75: 0.7724117771 | AY75: 0.7727086854 | AZ75: 0.7717165374 | BA75: 0
A76: Weighted Average Loan Size | B76: 89898.25 | C76: 91226.38 | D76: 91908 | E76: 92524.08 | F76: 93644.65 | G76: 94793.67 | H76: 95742.02 | I76: 93303.31 | J76: 93834.33 | K76: 94899.55 | L76: 96426.34 | M76: 101629.8 | N76: 102346.5 | O76: 103000.59 | P76: 104604.09 | Q76: 106429.6 | R76: 108043.39 | S76: 109293.56 | T76: 110382.74 | U76: 111135.46 | V76: 111746.15 | W76: 112050.19 | X76: 112248.32 | Y76: 112561.73 | Z76: 112676.56 | AA76: 112876.24 | AB76: 113086.67 | AC76: 113589.17 | AD76: 113517.71 | AE76: 113684.9 | AF76: 113893.97 | AG76: 113932.78 | AH76: 113793.51 | AI76: 114118.31 | AJ76: 114504.42 | AK76: 115254.52 | AL76: 115670.66 | AM76: 116324.7 | AN76: 116527 | AO76: 116686.53 | AP76: 116527.6278 | AQ76: 116696.3931 | AR76: 116572.1914 | AS76: 116828.3584 | AT76: 116998.9844 | AU76: 116929.1752 | AV76: 117126.0039 | AW76: 117373.336 | AX76: 118343.4419 | AY76: 118672.7962 | AZ76: 118750.5448 | BA76: 0
A77: Weighted Average Interest Rate | B77: 0.06355 | C77: 0.06364 | D77: 0.06417 | E77: 0.06301 | F77: 0.06122 | G77: 0.06139 | H77: 0.06108 | I77: 0.06083 | J77: 0.06271 | K77: 0.06429 | L77: 0.06562 | M77: 0.06793 | N77: 0.06856 | O77: 0.06632 | P77: 0.06512 | Q77: 0.06446 | R77: 0.06642 | S77: 0.04649 | T77: 0.03933 | U77: 0.03483 | V77: 0.02989 | W77: 0.03013 | X77: 0.02808 | Y77: 0.0274 | Z77: 0.02725 | AA77: 0.02636 | AB77: 0.02683 | AC77: 0.02633 | AD77: 0.02706 | AE77: 0.02781 | AF77: 0.02761 | AG77: 0.02619 | AH77: 0.02384 | AI77: 0.0237 | AJ77: 0.02362 | AK77: 0.02335 | AL77: 0.02328 | AM77: 0.02325 | AN77: 0.02332 | AO77: 0.02336 | AP77: 0.02350735316 | AQ77: 0.02351246829 | AR77: 0.02353321056 | AS77: 0.02352916291 | AT77: 0.02352652041 | AU77: 0.02356265669 | AV77: 0.02353960796 | AW77: 0.02339970774 | AX77: 0.0214647512 | AY77: 0.0213022654 | AZ77: 0.02131598478 | BA77: 0
A78: Weighted Average Maturity Date (years) | B78: 20.72 | C78: 20.6 | D78: 20.43 | E78: 20.22 | F78: 20.02 | G78: 19.79 | H78: 19.56 | I78: 19.33 | J78: 19.18 | K78: 18.99 | L78: 18.73 | M78: 18.55 | N78: 18.31 | O78: 18.05 | P78: 17.77 | Q78: 17.53 | R78: 17.32 | S78: 17.15 | T78: 16.96 | U78: 16.79 | V78: 16.57 | W78: 16.34 | X78: 16.09 | Y78: 15.86 | Z78: 15.65 | AA78: 15.42 | AB78: 15.19 | AC78: 14.96 | AD78: 14.73 | AE78: 14.51 | AF78: 14.29 | AG78: 14.06 | AH78: 13.83 | AI78: 13.6 | AJ78: 13.36 | AK78: 13.17 | AL78: 12.99 | AM78: 12.8 | AN78: 12.58 | AO78: 12.36 | AP78: 12.1396143 | AQ78: 11.91204645 | AR78: 11.66644605 | AS78: 11.47643683 | AT78: 11.25238407 | AU78: 11.02990515 | AV78: 10.81334779 | AW78: 10.58873014 | AX78: 10.33623454 | AY78: 10.12492725 | AZ78: 9.88675073 | BA78: 0
A79: Weighted Average Seasoning (months) | B79: 20.73 | C79: 22.54 | D79: 25.71 | E79: 29.06 | F79: 31.93 | G79: 35 | H79: 37.18 | I79: 40.02 | J79: 42.77 | K79: 45.46 | L79: 48.58 | M79: 52 | N79: 55.24 | O79: 58.37 | P79: 61.38 | Q79: 64.32 | R79: 67.1 | S79: 69.9 | T79: 72.78 | U79: 75.65 | V79: 78.56 | W79: 81.48 | X79: 84.41 | Y79: 87.33 | Z79: 90.32 | AA79: 93.26 | AB79: 96.1 | AC79: 99.03 | AD79: 101.97 | AE79: 104.9 | AF79: 107.7 | AG79: 110.6 | AH79: 113.5 | AI79: 116.42 | AJ79: 119.28 | AK79: 122.16 | AL79: 124.89 | AM79: 127.77 | AN79: 130.64 | AO79: 133.64 | AP79: 136.5623189 | AQ79: 139.5284301 | AR79: 142.4303645 | AS79: 145.3264732 | AT79: 148.232238 | AU79: 151.1899873 | AV79: 154.1445778 | AW79: 157.1814926 | AX79: 160.0280238 | AY79: 162.883949 | AZ79: 165.8013629 | BA79: 0
A80: % of Interest Only Mortgages | B80: 0.8521 | C80: 0.8623 | D80: 0.8687 | E80: 0.8727 | F80: 0.8766 | G80: 0.8784 | H80: 0.8801 | I80: 0.8838 | J80: 0.8848 | K80: 0.8859 | L80: 0.887 | M80: 0.8863 | N80: 0.8889 | O80: 0.8907 | P80: 0.8953 | Q80: 0.901 | R80: 0.9052 | S80: 0.9109 | T80: 0.9159 | U80: 0.9188 | V80: 0.9204 | W80: 0.9218 | X80: 0.924 | Y80: 0.926 | Z80: 0.928 | AA80: 0.9288 | AB80: 0.9291 | AC80: 0.9305 | AD80: 0.9325 | AE80: 0.9336 | AF80: 0.935 | AG80: 0.938 | AH80: 0.9393 | AI80: 0.9408 | AJ80: 0.9438 | AK80: 0.9446 | AL80: 0.9462 | AM80: 0.9476 | AN80: 0.948 | AO80: 0.9491 | AP80: 0.9506773672 | AQ80: 0.9523085134 | AR80: 0.9542099493 | AS80: 0.9547944418 | AT80: 0.9569535025 | AU80: 0.9577641894 | AV80: 0.95833076 | AW80: 0.9594219005 | AX80: 0.9615993331 | AY80: 0.9623691006 | AZ80: 0.9634483274 | BA80: 0
A81: % of Repayment Mortgages | B81: 0.1479 | C81: 0.1377 | D81: 0.1313 | E81: 0.1273 | F81: 0.1234 | G81: 0.1216 | H81: 0.1199 | I81: 0.1162 | J81: 0.1152 | K81: 0.1141 | L81: 0.113 | M81: 0.1137 | N81: 0.1111 | O81: 0.1093 | P81: 0.1047 | Q81: 0.099 | R81: 0.0948 | S81: 0.0891 | T81: 0.0841 | U81: 0.0812 | V81: 0.0796 | W81: 0.0782 | X81: 0.076 | Y81: 0.074 | Z81: 0.072 | AA81: 0.0712 | AB81: 0.0709 | AC81: 0.0695 | AD81: 0.0675 | AE81: 0.0664 | AF81: 0.065 | AG81: 0.062 | AH81: 0.0607 | AI81: 0.0592 | AJ81: 0.0562 | AK81: 0.0554 | AL81: 0.0538 | AM81: 0.0524 | AN81: 0.052 | AO81: 0.0509 | AP81: 0.04932263282 | AQ81: 0.04769148663 | AR81: 0.04579005073 | AS81: 0.04520555825 | AT81: 0.04304649755 | AU81: 0.04223581056 | AV81: 0.04166924002 | AW81: 0.04057809954 | AX81: 0.03840066688 | AY81: 0.03763089943 | AZ81: 0.03655167261 | BA81: 0
A82: % of Mortgages in London | B82: 0.1544 | C82: 0.1525 | D82: 0.153 | E82: 0.1537 | F82: 0.1537 | G82: 0.1546 | H82: 0.152 | I82: 0.1521 | J82: 0.1511 | K82: 0.1503 | L82: 0.1488 | M82: 0.1407 | N82: 0.1406 | O82: 0.1405 | P82: 0.1379 | Q82: 0.1366 | R82: 0.1359 | S82: 0.1346 | T82: 0.1346 | U82: 0.1345 | V82: 0.1356 | W82: 0.1357 | X82: 0.1355 | Y82: 0.1366 | Z82: 0.1362 | AA82: 0.1358 | AB82: 0.1336 | AC82: 0.1342 | AD82: 0.1338 | AE82: 0.1333 | AF82: 0.133 | AG82: 0.1331 | AH82: 0.1319 | AI82: 0.1317 | AJ82: 0.132 | AK82: 0.1323 | AL82: 0.1336 | AM82: 0.1334 | AN82: 0.1316 | AO82: 0.1317 | AP82: 0.1332405529 | AQ82: 0.1323961956 | AR82: 0.132373878 | AS82: 0.1322056908 | AT82: 0.132441623 | AU82: 0.1326940968 | AV82: 0.1308370641 | AW82: 0.1286033778 | AX82: 0.1317155612 | AY82: 0.1315275352 | AZ82: 0.130400921 | BA82: 0
A83: % of Mortgages in the South East | B83: 0.2322 | C83: 0.2303 | D83: 0.2315 | E83: 0.2301 | F83: 0.2282 | G83: 0.2287 | H83: 0.2309 | I83: 0.2296 | J83: 0.23 | K83: 0.2317 | L83: 0.2294 | M83: 0.2308 | N83: 0.232 | O83: 0.2262 | P83: 0.2268 | Q83: 0.2267 | R83: 0.2262 | S83: 0.2274 | T83: 0.2276 | U83: 0.2289 | V83: 0.2287 | W83: 0.2299 | X83: 0.231 | Y83: 0.2316 | Z83: 0.231 | AA83: 0.2315 | AB83: 0.2318 | AC83: 0.2315 | AD83: 0.2323 | AE83: 0.2325 | AF83: 0.2315 | AG83: 0.2321 | AH83: 0.2323 | AI83: 0.2324 | AJ83: 0.2314 | AK83: 0.2295 | AL83: 0.2257 | AM83: 0.2256 | AN83: 0.2259 | AO83: 0.2259 | AP83: 0.2222681878 | AQ83: 0.2206581925 | AR83: 0.2193070921 | AS83: 0.2193732264 | AT83: 0.2202171642 | AU83: 0.2180211166 | AV83: 0.2187471036 | AW83: 0.2203272062 | AX83: 0.2198131831 | AY83: 0.2186286433 | AZ83: 0.2173471375 | BA83: 0
A84: % of Owner Occupied Mortgages | B84: 0.015 | C84: 0.0146 | D84: 0.0137 | E84: 0.0129 | F84: 0.0126 | G84: 0.0131 | H84: 0.0123 | I84: 0.0112 | J84: 0.0104 | K84: 0.0105 | L84: 0.0101 | M84: 0.0098 | N84: 0.01 | O84: 0.0099 | P84: 0.0101 | Q84: 0.0102 | R84: 0.0103 | S84: 0.0101 | T84: 0.0099 | U84: 0.0097 | V84: 0.0095 | W84: 0.0091 | X84: 0.009 | Y84: 0.0088 | Z84: 0.0085 | AA84: 0.0084 | AB84: 0.0084 | AC84: 0.0081 | AD84: 0.0078 | AE84: 0.0077 | AF84: 0.0075 | AG84: 0.0074 | AH84: 0.0073 | AI84: 0.0071 | AJ84: 0.007 | AK84: 0.0061 | AL84: 0.006 | AM84: 0.0056 | AN84: 0.0056 | AO84: 0.0056 | AP84: 0.005570637699 | AQ84: 0.005483562744 | AR84: 0.005457016177 | AS84: 0.005464537321 | AT84: 0.005303492612 | AU84: 0.00523523764 | AV84: 0.005023879782 | AW84: 0.004901462234 | AX84: 0.004861714887 | AY84: 0.00470606248 | AZ84: 0.004683609155 | BA84: 0
A85: % of Investment Home Loans - Professional Landlords | B85: 0.7588 | C85: 0.7633 | D85: 0.7664 | E85: 0.7668 | F85: 0.7675 | G85: 0.7664 | H85: 0.7688 | I85: 0.7714 | J85: 0.7732 | K85: 0.7733 | L85: 0.7826 | M85: 0.7929 | N85: 0.8024 | O85: 0.8035 | P85: 0.8041 | Q85: 0.8057 | R85: 0.8068 | S85: 0.8073 | T85: 0.8098 | U85: 0.8102 | V85: 0.8116 | W85: 0.8138 | X85: 0.8137 | Y85: 0.8157 | Z85: 0.8168 | AA85: 0.8171 | AB85: 0.8177 | AC85: 0.8184 | AD85: 0.8198 | AE85: 0.8195 | AF85: 0.8201 | AG85: 0.8203 | AH85: 0.8205 | AI85: 0.8207 | AJ85: 0.8208 | AK85: 0.8217 | AL85: 0.8215 | AM85: 0.8222 | AN85: 0.8243 | AO85: 0.8254 | AP85: 0.8255588232 | AQ85: 0.8276431965 | AR85: 0.8278253641 | AS85: 0.8273098949 | AT85: 0.827442873 | AU85: 0.8296470601 | AV85: 0.8294735854 | AW85: 0.8293457534 | AX85: 0.8297866353 | AY85: 0.8291143592 | AZ85: 0.8304681224 | BA85: 0
A86: % of Investment Home Loans - Emerging Professional Landlords | B86: 0.2262 | C86: 0.2221 | D86: 0.2199 | E86: 0.2203 | F86: 0.2199 | G86: 0.2204 | H86: 0.219 | I86: 0.2174 | J86: 0.2164 | K86: 0.2163 | L86: 0.2073 | M86: 0.1973 | N86: 0.1876 | O86: 0.1866 | P86: 0.1858 | Q86: 0.1841 | R86: 0.1829 | S86: 0.1825 | T86: 0.1803 | U86: 0.1801 | V86: 0.1789 | W86: 0.177 | X86: 0.1773 | Y86: 0.1755 | Z86: 0.1746 | AA86: 0.1745 | AB86: 0.1739 | AC86: 0.1735 | AD86: 0.1724 | AE86: 0.1728 | AF86: 0.1723 | AG86: 0.1724 | AH86: 0.1723 | AI86: 0.1722 | AJ86: 0.1722 | AK86: 0.1722 | AL86: 0.1725 | AM86: 0.1721 | AN86: 0.1701 | AO86: 0.169 | AP86: 0.1688705391 | AQ86: 0.1668732407 | AR86: 0.1667176197 | AS86: 0.1672255678 | AT86: 0.1672536343 | AU86: 0.1651177023 | AV86: 0.1655025348 | AW86: 0.1657527843 | AX86: 0.1653516498 | AY86: 0.1661795783 | AZ86: 0.1648482684 | BA86: 0
A87: Weighted Average Interest Coverage Ratio (calculated at the origination date) | B87: 1.95 | C87: 1.95 | D87: 1.94 | E87: 1.94 | F87: 1.94 | G87: 1.94 | H87: 1.94 | I87: 1.94 | J87: 1.95 | K87: 1.94 | L87: 1.95 | M87: 1.95 | N87: 1.94 | O87: 1.94 | P87: 1.93 | Q87: 1.93 | R87: 1.93 | S87: 1.92 | T87: 1.92 | U87: 1.92 | V87: 1.92 | W87: 1.92 | X87: 1.92 | Y87: 1.91 | Z87: 1.91 | AA87: 1.91 | AB87: 1.91 | AC87: 1.91 | AD87: 1.91 | AE87: 1.91 | AF87: 1.91 | AG87: 1.9 | AH87: 1.9 | AI87: 1.9 | AJ87: 1.9 | AK87: 1.89 | AL87: 1.89 | AM87: 1.89 | AN87: 1.89 | AO87: 1.89 | AP87: 1.892366764 | AQ87: 1.890710829 | AR87: 1.890218141 | AS87: 1.885882015 | AT87: 1.883848454 | AU87: 1.884770198 | AV87: 1.885397718 | AW87: 1.885900141 | AX87: 1.882707844 | AY87: 1.882172333 | AZ87: 1.883170619 | BA87: 0
A88: PML Lifetime Redemption Rate | B88: 0.1744 | C88: 0.1625 | D88: 0.1567 | E88: 0.1538 | F88: 0.1539 | G88: 0.1546 | H88: 0.1516 | I88: 0.1496 | J88: 0.153 | K88: 0.1538 | L88: 0.159 | M88: 0.1707 | N88: 0.1816 | O88: 0.1863 | P88: 0.186 | Q88: 0.1821 | R88: 0.1776 | S88: 0.1719 | T88: 0.1654 | U88: 0.1598 | V88: 0.1544 | W88: 0.1495 | X88: 0.1447 | Y88: 0.1406 | Z88: 0.1367 | AA88: 0.1327 | AB88: 0.1293 | AC88: 0.1258 | AD88: 0.1229 | AE88: 0.1198 | AF88: 0.1172 | AG88: 0.1145 | AH88: 0.112 | AI88: 0.1094 | AJ88: 0.1071 | AK88: 0.1051 | AL88: 0.1035 | AM88: 0.1016 | AN88: 0.1002 | AO88: 0.0985 | AP88: 0.0974 | AQ88: 0.0959 | AR88: 0.0949 | AS88: 0.0938 | AT88: 0.0927 | AU88: 0.0916 | AV88: 0.0912 | AW88: 0.0902 | AX88: 0.089 | AY88: 0.088 | AZ88: 0.0875 | BA88: 1
A89: Number of Properties in Possession | B89: 0 | C89: 0 | D89: 1 | E89: 0 | F89: 0 | G89: 0 | H89: 0 | I89: 1 | J89: 1 | K89: 0 | L89: 1 | M89: 1 | N89: 2 | O89: 2 | P89: 3 | Q89: 2 | R89: 2 | S89: 2 | T89: 2 | U89: 0 | V89: 0 | W89: 0 | X89: 0 | Y89: 0 | Z89: 0 | AA89: 0 | AB89: 0 | AC89: 2 | AD89: 2 | AE89: 1 | AF89: 1 | AG89: 0 | AH89: 0 | AI89: 0 | AJ89: 1 | AK89: 1 | AL89: 1 | AM89: 0 | AN89: 0 | AO89: 0 | AP89: 1 | AQ89: 1 | AR89: 0 | AS89: 0 | AT89: 0 | AU89: 0 | AV89: 0 | AW89: 0 | AX89: 0 | AY89: 0 | AZ89: 0 | BA89: 0
A90: Appointment of a Receiver of Rent | B90: 0 | C90: 0 | D90: 31 | E90: 32 | F90: 55 | G90: 58 | H90: 51 | I90: 72 | J90: 46 | K90: 46 | L90: 33 | M90: 25 | N90: 21 | O90: 22 | P90: 20 | Q90: 33 | R90: 38 | S90: 75 | T90: 90 | U90: 106 | V90: 101 | W90: 94 | X90: 80 | Y90: 75 | Z90: 60 | AA90: 68 | AB90: 63 | AC90: 63 | AD90: 65 | AE90: 66 | AF90: 59 | AG90: 56 | AH90: 54 | AI90: 52 | AJ90: 46 | AK90: 42 | AL90: 41 | AM90: 41 | AN90: 40 | AO90: 40 | AP90: 40 | AQ90: 38 | AR90: 34 | AS90: 30 | AT90: 25 | AU90: 25 | AV90: 23 | AW90: 21 | AX90: 18 | AY90: 22 | AZ90: 19 | BA90: 0
A91: PML Quarterly Losses | B91: 0 | C91: 0 | D91: 0 | E91: 0 | F91: 0 | G91: 0 | H91: 0 | I91: 0 | J91: 265 | K91: 40 | L91: 123 | M91: 134 | N91: 158 | O91: 166 | P91: 196 | Q91: 65 | R91: 34 | S91: 130 | T91: 177 | U91: 136 | V91: 327 | W91: 224 | X91: 528 | Y91: 280 | Z91: 118 | AA91: 239 | AB91: 84 | AC91: 243 | AD91: 402 | AE91: 202 | AF91: 241 | AG91: 152 | AH91: 38 | AI91: 109 | AJ91: 288 | AK91: 158 | AL91: 155 | AM91: 115 | AN91: 76 | AO91: -56 | AP91: 168 | AQ91: 22 | AR91: 265 | AS91: 56 | AT91: 61 | AU91: -6 | AV91: -4 | AW91: 177 | AX91: 145 | AY91: 42 | AZ91: -83 | BA91: -58
A92: Arrears excluding Receiver of Rent and Possession Cases (From 30/04/05)
A93: Performing Loans | B93: 0.987 | C93: 0.9833 | D93: 0.9894 | E93: 0.9884 | F93: 0.9909 | G93: 0.9906 | H93: 0.9885 | I93: 0.9918 | J93: 0.9923 | K93: 0.9928 | L93: 0.9939 | M93: 0.9887 | N93: 0.994 | O93: 0.9865 | P93: 0.9862 | Q93: 0.9888 | R93: 0.9763 | S93: 0.9723 | T93: 0.9823 | U93: 0.9808 | V93: 0.9821 | W93: 0.9796 | X93: 0.9893 | Y93: 0.9901 | Z93: 0.9825 | AA93: 0.9882 | AB93: 0.983 | AC93: 0.9884 | AD93: 0.9901 | AE93: 0.9884 | AF93: 0.9885 | AG93: 0.9839 | AH93: 0.9906 | AI93: 0.9864 | AJ93: 0.9935 | AK93: 0.9971 | AL93: 0.9968 | AM93: 0.9981 | AN93: 0.9957 | AO93: 0.9961 | AP93: 0.9938859712 | AQ93: 0.9970678723 | AR93: 0.9984985555 | AS93: 0.9984516419 | AT93: 0.9987254624 | AU93: 0.9985925315 | AV93: 0.9968195936 | AW93: 0.9971783492 | AX93: 0.9993175218 | AY93: 0.9977338601 | AZ93: 0.9975909159 | BA93: 0
A94: >1 to 2 months arrears | B94: 0.0045 | C94: 0.009 | D94: 0.0061 | E94: 0.0062 | F94: 0.0036 | G94: 0.0047 | H94: 0.0039 | I94: 0.0061 | J94: 0.005 | K94: 0.0051 | L94: 0.0028 | M94: 0.0088 | N94: 0.0053 | O94: 0.0094 | P94: 0.0078 | Q94: 0.0064 | R94: 0.0184 | S94: 0.012 | T94: 0.0132 | U94: 0.0146 | V94: 0.0139 | W94: 0.0151 | X94: 0.0066 | Y94: 0.007 | Z94: 0.016 | AA94: 0.0087 | AB94: 0.0159 | AC94: 0.0093 | AD94: 0.0072 | AE94: 0.0102 | AF94: 0.0094 | AG94: 0.0141 | AH94: 0.0081 | AI94: 0.0118 | AJ94: 0.0054 | AK94: 0.0001 | AL94: 0.002 | AM94: 0.0009 | AN94: 0.0033 | AO94: 0.0007 | AP94: 0.005066981802 | AQ94: 0.001658420681 | AR94: 0.000900283727 | AS94: 0.0006706292918 | AT94: 6.000421616e-05 | AU94: 0.0008733112644 | AV94: 0.002795465312 | AW94: 0.0008252783998 | AX94: 0.0005111776428 | AY94: 0.001997843663 | AZ94: 0.0001954045349 | BA94: 0
A95: >2 to 3 months arrears | B95: 0.0016 | C95: 0.0024 | D95: 0.0023 | E95: 0.0027 | F95: 0.0028 | G95: 0.0032 | H95: 0.0035 | I95: 0.0013 | J95: 0.0013 | K95: 0.0008 | L95: 0.0009 | M95: 0.0003 | N95: 0.0004 | O95: 0.0038 | P95: 0.0055 | Q95: 0.003 | R95: 0.0033 | S95: 0.0065 | T95: 0.002 | U95: 0.0033 | V95: 0.0019 | W95: 0.0035 | X95: 0.0026 | Y95: 0.0017 | Z95: 0.0003 | AA95: 0.0023 | AB95: 0.0005 | AC95: 0.0019 | AD95: 0.0014 | AE95: 0.0005 | AF95: 0.0009 | AG95: 0.0007 | AH95: 0.0004 | AI95: 0.0007 | AJ95: 0.0002 | AK95: 0.0003 | AL95: 0.0002 | AM95: 0 | AN95: 0.0001 | AO95: 0.0003 | AP95: 0.0004264177276 | AQ95: 0.0007895621601 | AR95: 7.821155102e-05 | AS95: 0.0003505512907 | AT95: 0 | AU95: 0 | AV95: 0 | AW95: 0.0002283725626 | AX95: 0 | AY95: 0 | AZ95: 0.001870798608 | BA95: 0
A96: >3 months arrears | B96: 0.0069 | C96: 0.0053 | D96: 0.0022 | E96: 0.0027 | F96: 0.0027 | G96: 0.0015 | H96: 0.0041 | I96: 0.0008 | J96: 0.0014 | K96: 0.0013 | L96: 0.0024 | M96: 0.0022 | N96: 0.0003 | O96: 0.0003 | P96: 0.0005 | Q96: 0.0018 | R96: 0.002 | S96: 0.0092 | T96: 0.0025 | U96: 0.0013 | V96: 0.0021 | W96: 0.0018 | X96: 0.0015 | Y96: 0.0012 | Z96: 0.0012 | AA96: 0.0008 | AB96: 0.0006 | AC96: 0.0004 | AD96: 0.0013 | AE96: 0.0009 | AF96: 0.0012 | AG96: 0.0013 | AH96: 0.0009 | AI96: 0.0011 | AJ96: 0.0009 | AK96: 0.0025 | AL96: 0.001 | AM96: 0.001 | AN96: 0.0009 | AO96: 0.0029 | AP96: 0.000620629291 | AQ96: 0.0004841448797 | AR96: 0.0005229492164 | AS96: 0.0005271775545 | AT96: 0.001214533367 | AU96: 0.0005341572618 | AV96: 0.000384941111 | AW96: 0.001767999832 | AX96: 0.000171300525 | AY96: 0.0002682962403 | AZ96: 0.0003428809614 | BA96: 0
A97: Total | B97: =SUM(B93:B96) -> 1 | C97: 1 | D97: 1 | E97: 1 | F97: 1 | G97: 1 | H97: 1 | I97: 1 | J97: 1 | K97: 1 | L97: 1 | M97: 1 | N97: 1 | O97: 1 | P97: 1 | Q97: 1 | R97: 1 | S97: 1 | T97: 1 | U97: 1 | V97: 1 | W97: 1 | X97: 1 | Y97: 1 | Z97: 1 | AA97: 1 | AB97: 1 | AC97: 1 | AD97: 1 | AE97: =SUM(AE93:AE96) -> 1 | AF97: 1 | AG97: 1 | AH97: 1 | AI97: 1 | AJ97: 1 | AK97: =SUM(AK93:AK96) -> 1 | AL97: 1 | AM97: 1 | AN97: 1 | AO97: 1 | AP97: 1 | AQ97: 1 | AR97: 1 | AS97: 1 | AT97: 1 | AU97: 1 | AV97: 1 | AW97: 1 | AX97: 1 | AY97: 1 | AZ97: 1 | BA97: 0
A100: Underlying Assets - Mortgage Trust Originated Assets | B100: 2004-10-31 | C100: 2005-01-31 | D100: 2005-04-30 | E100: 2005-07-31 | F100: 2005-10-31 | G100: 2006-01-31 | H100: 2006-04-28 | I100: 2006-07-31 | J100: 2006-10-31 | K100: 2007-01-31 | L100: 2007-04-30 | M100: 2007-07-31 | N100: 2007-10-31 | O100: 2008-01-31 | P100: 2008-04-30 | Q100: 2008-07-31 | R100: 2008-10-31 | S100: 2009-01-30 | T100: 2009-04-30 | U100: 2009-07-31 | V100: 2009-10-30 | W100: 2010-01-29 | X100: 2010-04-30 | Y100: 2010-07-30 | Z100: 2010-10-29 | AA100: 2011-01-31 | AB100: 2011-04-28 | AC100: 2011-07-29 | AD100: 2011-10-31 | AE100: 2012-01-31 | AF100: 2012-04-30 | AG100: 2012-07-31 | AH100: 2012-10-31 | AI100: 2013-01-31 | AJ100: 2013-04-30 | AK100: 2013-07-31 | AL100: 2013-10-31 | AM100: 2014-01-31 | AN100: 2014-04-30 | AO100: 2014-07-31 | AP100: 2014-10-31 | AQ100: 2015-01-30 | AR100: 2015-04-30 | AS100: 2015-07-31 | AT100: 2015-10-30 | AU100: 2016-01-29 | AV100: =+AV68 -> 2016-04-29 | AW100: 2016-07-31 | AX100: =+AX68 -> 2016-10-31 | AY100: =+AY68 -> 2017-01-31 | AZ100: =+AZ68 -> 2017-04-28 | BA100: =+BA68 -> 2017-07-31
A101: Weighted Average LTV | B101: 0.787 | C101: 0.7878 | D101: 0.7891 | E101: 0.7838 | F101: 0.7825 | G101: 0.7835 | H101: 0.7811 | I101: 0.7791 | J101: 0.7775 | K101: 0.7787 | L101: 0.7755 | M101: 0.772 | N101: 0.7705 | O101: 0.7701 | P101: 0.7683 | Q101: 0.7746 | R101: 0.774 | S101: 0.7736 | T101: 0.7726 | U101: 0.7699 | V101: 0.77 | W101: 0.7679 | X101: 0.7691 | Y101: 0.7687 | Z101: 0.7696 | AA101: 0.7692 | AB101: 0.7681 | AC101: 0.7682 | AD101: 0.7674 | AE101: 0.77 | AF101: 0.7741 | AG101: 0.7716 | AH101: 0.7702 | AI101: 0.7717 | AJ101: 0.7705 | AK101: 0.7707 | AL101: 0.7721 | AM101: 0.7705 | AN101: 0.7696 | AO101: 0.7686 | AP101: 0.7678839807 | AQ101: 0.76762877 | AR101: 0.7680643949 | AS101: 0.7676856812 | AT101: 0.7699836272 | AU101: 0.7721700819 | AV101: 0.7688156121 | AW101: 0.7671796345 | AX101: 0.7727300898 | AY101: 0.7717830762 | AZ101: 0.7697756146 | BA101: 0
A102: Weighted Average Nationwide Indexed LTV | B102: 0.7463 | C102: 0.7525 | D102: 0.7578 | E102: 0.7525 | F102: 0.74 | G102: 0.7313 | H102: 0.718 | I102: 0.6779 | J102: 0.6628 | K102: 0.649 | L102: 0.6357 | M102: 0.612 | N102: 0.6023 | O102: 0.6038 | P102: 0.617 | Q102: 0.644 | R102: 0.7007 | S102: 0.7235 | T102: 0.7564 | U102: 0.7218 | V102: 0.6957 | W102: 0.6848 | X102: 0.6792 | Y102: 0.6641 | Z102: 0.6597 | AA102: 0.6788 | AB102: 0.679 | AC102: 0.663 | AD102: 0.6674 | AE102: 0.6745 | AF102: 0.6865 | AG102: 0.677 | AH102: 0.6764 | AI102: 0.6847 | AJ102: 0.6804 | AK102: 0.6648 | AL102: 0.6493 | AM102: 0.6347 | AN102: 0.6214 | AO102: 0.5917 | AP102: 0.5844548708 | AQ102: 0.5846281821 | AR102: 0.5841303305 | AS102: 0.5658125141 | AT102: 0.5631465286 | AU102: 0.5609514758 | AV102: 0.5553586178 | AW102: 0.5360960335 | AX102: 0.5367354983 | AY102: 0.5367802436 | AZ102: 0.53921415 | BA102: 0
A103: Weighted Average Halifax Indexed LTV | B103: 0.758 | C103: 0.7634 | D103: 0.7569 | E103: 0.7332 | F103: 0.7284 | G103: 0.7234 | H103: 0.7109 | I103: 0.673 | J103: 0.6629 | K103: 0.6365 | L103: 0.6201 | M103: 0.5979 | N103: 0.5897 | O103: 0.5904 | P103: 0.6111 | Q103: 0.6379 | R103: 0.6874 | S103: 0.7359 | T103: 0.7585 | U103: 0.7455 | V103: 0.7294 | W103: 0.7138 | X103: 0.708 | Y103: 0.6941 | Z103: 0.7038 | AA103: 0.7163 | AB103: 0.725 | AC103: 0.7221 | AD103: 0.716 | AE103: 0.7225 | AF103: 0.7274 | AG103: 0.7233 | AH103: 0.72 | AI103: 0.7319 | AJ103: 0.7144 | AK103: 0.6982 | AL103: 0.6861 | AM103: 0.6775 | AN103: 0.66 | AO103: 0.6372 | AP103: 0.6106781424 | AQ103: 0.617192361 | AR103: 0.6049032362 | AS103: 0.5734794174 | AT103: 0.5632343153 | AU103: 0.5677182875 | AV103: 0.5445494138 | AW103: 0.5264793123 | AX103: n/a | AY103: n/a | AZ103: n/a | BA103: n/a
A104: % of Variable Rate Mortgages | B104: 0 | C104: 0 | D104: 0 | E104: 0 | F104: 0 | G104: 0 | H104: 0 | I104: 0 | J104: 0 | K104: 0 | L104: 0 | M104: 0 | N104: 0 | O104: 0 | P104: 0 | Q104: 0 | R104: 0 | S104: 0 | T104: 0 | U104: 0 | V104: 0 | W104: 0 | X104: 0 | Y104: 0 | Z104: 0 | AA104: 0 | AB104: 0 | AC104: 0 | AD104: 0 | AE104: 0 | AF104: 0 | AG104: 0 | AH104: 0 | AI104: 0 | AJ104: 0 | AK104: 0 | AL104: 0 | AM104: 0 | AN104: 0 | AO104: 0 | AP104: 0 | AQ104: 0 | AR104: 0 | AS104: 0 | AT104: 0 | AU104: 0 | AV104: 0 | AW104: 0 | AX104: 0 | AY104: 0 | AZ104: 0 | BA104: 0
A105: % of Fixed Rate Mortgages | B105: 0.3424 | C105: 0.3396 | D105: 0.3403 | E105: 0.3069 | F105: 0.2864 | G105: 0.27 | H105: 0.2718 | I105: 0.2275 | J105: 0.2208 | K105: 0.2903 | L105: 0.2864 | M105: 0.3013 | N105: 0.328 | O105: 0.3966 | P105: 0.4429 | Q105: 0.4626 | R105: 0.4111 | S105: 0.355 | T105: 0.3312 | U105: 0.2604 | V105: 0.2361 | W105: 0.2135 | X105: 0.0889 | Y105: 0.0449 | Z105: 0.0454 | AA105: 0.0274 | AB105: 0.028 | AC105: 0.0196 | AD105: 0.0098 | AE105: 0.0099 | AF105: 0.0099 | AG105: 0.0101 | AH105: 0.0103 | AI105: 0.0103 | AJ105: 0.0105 | AK105: 0 | AL105: 0 | AM105: 0 | AN105: 0 | AO105: 0 | AP105: 0 | AQ105: 0 | AR105: 0 | AS105: 0 | AT105: 0 | AU105: 0 | AV105: 0 | AW105: 0 | AX105: 0 | AY105: 0 | AZ105: 0 | BA105: 0
A106: % of Base Rate Mortgages | B106: 0 | C106: 0 | D106: 0 | E106: 0 | F106: 0 | G106: 0 | H106: 0 | I106: 0 | J106: 0 | K106: 0.0013 | L106: 0.0015 | M106: 0.0276 | N106: 0.0313 | O106: 0.0357 | P106: 0.0444 | Q106: 0.0264 | R106: 0.0275 | S106: 0.0283 | T106: 0.0286 | U106: 0.0289 | V106: 0.0288 | W106: 0.0292 | X106: 0.0222 | Y106: 0.0224 | Z106: 0.0226 | AA106: 0.0226 | AB106: 0.023 | AC106: 0.0234 | AD106: 0.0237 | AE106: 0.0239 | AF106: 0.0238 | AG106: 0.0243 | AH106: 0.0246 | AI106: 0.0246 | AJ106: 0.0252 | AK106: 0.0254 | AL106: 0.0255 | AM106: 0.0229 | AN106: 0.0233 | AO106: 0.0234 | AP106: 0.02369902874 | AQ106: 0.02386625045 | AR106: 0.02395510008 | AS106: 0.02422431857 | AT106: 0.02465580326 | AU106: 0.02493257495 | AV106: 0.02549358282 | AW106: 0.02615837966 | AX106: 0.02748279357 | AY106: 0.02765623636 | AZ106: 0.02869419975 | BA106: 0
A107: % of Libor Linked Mortgages | B107: 0.6576 | C107: 0.6604 | D107: 0.6597 | E107: 0.6931 | F107: 0.7136 | G107: 0.73 | H107: 0.7282 | I107: 0.7725 | J107: 0.7792 | K107: 0.7084 | L107: 0.7121 | M107: 0.6711 | N107: 0.6407 | O107: 0.5676 | P107: 0.5127 | Q107: 0.511 | R107: 0.5614 | S107: 0.6167 | T107: 0.6403 | U107: 0.7107 | V107: 0.7351 | W107: 0.7573 | X107: 0.8889 | Y107: 0.9326 | Z107: 0.932 | AA107: 0.9499 | AB107: 0.949 | AC107: 0.9571 | AD107: 0.9664 | AE107: 0.9661 | AF107: 0.9663 | AG107: 0.9656 | AH107: 0.9651 | AI107: 0.9652 | AJ107: 0.9642 | AK107: 0.9746 | AL107: 0.9745 | AM107: 0.9771 | AN107: 0.9767 | AO107: 0.9766 | AP107: 0.9763009713 | AQ107: 0.9761337495 | AR107: 0.9760448999 | AS107: 0.9757756814 | AT107: 0.9753441967 | AU107: 0.975067425 | AV107: 0.9745064172 | AW107: 0.9738416203 | AX107: 0.9725172064 | AY107: 0.9723437636 | AZ107: 0.9713058002 | BA107: 0
A108: Weighted Average Loan Size | B108: 99018.23 | C108: 99987.88 | D108: 99624.89 | E108: 99875.99 | F108: 100361.2 | G108: 100974.31 | H108: 100794.94 | I108: 101481.65 | J108: 101272.28 | K108: 100652.24 | L108: 101871.1 | M108: 103031.76 | N108: 104981.65 | O108: 102706.56 | P108: 102181.46 | Q108: 100387.22 | R108: 100889.15 | S108: 100784.59 | T108: 100252.99 | U108: 99625.28 | V108: 99627.68 | W108: 98279.42 | X108: 97818.88 | Y108: 98166.88 | Z108: 98268.65 | AA108: 98096.42 | AB108: 97274.3 | AC108: 96820.79 | AD108: 95696.84 | AE108: 95804.83 | AF108: 96621.04 | AG108: 96458.13 | AH108: 96613.36 | AI108: 96665.18 | AJ108: 97613.57 | AK108: 97427.23 | AL108: 97465.71 | AM108: 96541.71 | AN108: 96261.04 | AO108: 96220.73 | AP108: 95409.07878 | AQ108: 95842.47363 | AR108: 95947.81814 | AS108: 96009.09755 | AT108: 96840.66518 | AU108: 97671.82404 | AV108: 96741.82866 | AW108: 96975.72554 | AX108: 95025.38413 | AY108: 94975.71128 | AZ108: 93583.85582 | BA108: 0
A109: Weighted Average Interest Rate | B109: 0.05521 | C109: 0.05632 | D109: 0.05747 | E109: 0.05894 | F109: 0.05573 | G109: 0.05566 | H109: 0.05635 | I109: 0.05842 | J109: 0.06052 | K109: 0.06159 | L109: 0.06405 | M109: 0.06633 | N109: 0.07227 | O109: 0.06984 | P109: 0.06429 | Q109: 0.06496 | R109: 0.0653 | S109: 0.05431 | T109: 0.04217 | U109: 0.03613 | V109: 0.03107 | W109: 0.02977 | X109: 0.02615 | Y109: 0.02534 | Z109: 0.02546 | AA109: 0.0252 | AB109: 0.02584 | AC109: 0.02572 | AD109: 0.02624 | AE109: 0.02769 | AF109: 0.02787 | AG109: 0.02724 | AH109: 0.02424 | AI109: 0.02271 | AJ109: 0.02252 | AK109: 0.02209 | AL109: 0.0222 | AM109: 0.02235 | AN109: 0.02238 | AO109: 0.02254 | AP109: 0.02281595506 | AQ109: 0.022759256 | AR109: 0.02284741251 | AS109: 0.02289262214 | AT109: 0.02310883175 | AU109: 0.02297804959 | AV109: 0.02327879698 | AW109: 0.02344884146 | AX109: 0.02135696139 | AY109: 0.02134882699 | AZ109: 0.02096961887 | BA109: 0
A110: Weighted Average Maturity Date (years) | B110: 21.73 | C110: 21.49 | D110: 21.24 | E110: 20.89 | F110: 20.62 | G110: 20.3 | H110: 20 | I110: 19.75 | J110: 19.45 | K110: 19.26 | L110: 18.85 | M110: 18.72 | N110: 18.39 | O110: 17.9 | P110: 17.74 | Q110: 17.65 | R110: 17.38 | S110: 17.16 | T110: 16.96 | U110: 16.67 | V110: 16.43 | W110: 16.14 | X110: 15.99 | Y110: 15.79 | Z110: 15.53 | AA110: 15.29 | AB110: 15.03 | AC110: 14.74 | AD110: 14.61 | AE110: 14.38 | AF110: 14.15 | AG110: 13.86 | AH110: 13.6 | AI110: 13.36 | AJ110: 13.21 | AK110: 13.03 | AL110: 12.8 | AM110: 12.6 | AN110: 12.32 | AO110: 12.07 | AP110: 11.84513544 | AQ110: 11.60611811 | AR110: 11.34464185 | AS110: 11.09046791 | AT110: 10.84777666 | AU110: 10.64747966 | AV110: 10.34661256 | AW110: 10.02926747 | AX110: 9.770571904 | AY110: 9.512283334 | AZ110: 9.330160657 | BA110: 0
A111: Weighted Average Seasoning (months) | B111: 7.23 | C111: 9.28 | D111: 12.18 | E111: 16.2 | F111: 19.23 | G111: 22.25 | H111: 24.62 | I111: 27.63 | J111: 30.66 | K111: 33.71 | L111: 36.61 | M111: 39.64 | N111: 42.66 | O111: 45.71 | P111: 48.66 | Q111: 51.68 | R111: 54.7 | S111: 57.72 | T111: 60.66 | U111: 63.69 | V111: 66.71 | W111: 69.75 | X111: 72.68 | Y111: 75.71 | Z111: 78.73 | AA111: 81.75 | AB111: 84.68 | AC111: 87.7 | AD111: 90.71 | AE111: 93.74 | AF111: 96.68 | AG111: 99.72 | AH111: 102.74 | AI111: 105.76 | AJ111: 108.67 | AK111: 111.69 | AL111: 114.71 | AM111: 117.73 | AN111: 120.67 | AO111: 123.7 | AP111: 126.7234773 | AQ111: 129.7486683 | AR111: 132.6770537 | AS111: 135.7010917 | AT111: 138.7231817 | AU111: 141.7507194 | AV111: 144.7055194 | AW111: 147.722867 | AX111: 150.6444605 | AY111: 153.6639779 | AZ111: 156.5832189 | BA111: 0
A112: % of Interest Only Mortgages | B112: 0.8858 | C112: 0.8863 | D112: 0.8897 | E112: 0.8866 | F112: 0.876 | G112: 0.8696 | H112: 0.8703 | I112: 0.8622 | J112: 0.8581 | K112: 0.8589 | L112: 0.852 | M112: 0.8487 | N112: 0.8593 | O112: 0.8861 | P112: 0.8875 | Q112: 0.883 | R112: 0.8859 | S112: 0.8872 | T112: 0.9019 | U112: 0.9108 | V112: 0.9073 | W112: 0.9073 | X112: 0.9078 | Y112: 0.908 | Z112: 0.9157 | AA112: 0.9169 | AB112: 0.9166 | AC112: 0.9197 | AD112: 0.9197 | AE112: 0.9244 | AF112: 0.9258 | AG112: 0.9256 | AH112: 0.9256 | AI112: 0.927 | AJ112: 0.9263 | AK112: 0.9271 | AL112: 0.9279 | AM112: 0.9267 | AN112: 0.927 | AO112: 0.9279 | AP112: 0.928359468 | AQ112: 0.9317763302 | AR112: 0.9358938254 | AS112: 0.9365324146 | AT112: 0.9461887921 | AU112: 0.9498993383 | AV112: 0.9501530464 | AW112: 0.9512095133 | AX112: 0.9501797364 | AY112: 0.9513296651 | AZ112: 0.9561388645 | BA112: 0
A113: % of Repayment Mortgages | B113: 0.1142 | C113: 0.1137 | D113: 0.1103 | E113: 0.1134 | F113: 0.124 | G113: 0.1304 | H113: 0.1297 | I113: 0.1378 | J113: 0.1419 | K113: 0.1411 | L113: 0.148 | M113: 0.1513 | N113: 0.1407 | O113: 0.1139 | P113: 0.1125 | Q113: 0.117 | R113: 0.1141 | S113: 0.1128 | T113: 0.0981 | U113: 0.0892 | V113: 0.0927 | W113: 0.0927 | X113: 0.0922 | Y113: 0.092 | Z113: 0.0843 | AA113: 0.0831 | AB113: 0.0834 | AC113: 0.0803 | AD113: 0.0803 | AE113: 0.0756 | AF113: 0.0742 | AG113: 0.0744 | AH113: 0.0744 | AI113: 0.073 | AJ113: 0.0737 | AK113: 0.0729 | AL113: 0.0721 | AM113: 0.0733 | AN113: 0.073 | AO113: 0.0721 | AP113: 0.071640532 | AQ113: 0.0682236698 | AR113: 0.06410617464 | AS113: 0.06346758536 | AT113: 0.05381120788 | AU113: 0.05010066171 | AV113: 0.04984695364 | AW113: 0.04879048669 | AX113: 0.04982026356 | AY113: 0.04867033495 | AZ113: 0.0438611355 | BA113: 0
A114: % of Mortgages in London | B114: 0.2502 | C114: 0.2569 | D114: 0.2598 | E114: 0.2665 | F114: 0.2709 | G114: 0.2725 | H114: 0.2698 | I114: 0.2792 | J114: 0.2826 | K114: 0.2643 | L114: 0.2621 | M114: 0.2513 | N114: 0.263 | O114: 0.215 | P114: 0.2224 | Q114: 0.21 | R114: 0.2113 | S114: 0.2111 | T114: 0.2141 | U114: 0.215 | V114: 0.2154 | W114: 0.2084 | X114: 0.2101 | Y114: 0.2123 | Z114: 0.216 | AA114: 0.216 | AB114: 0.2054 | AC114: 0.2071 | AD114: 0.1951 | AE114: 0.1925 | AF114: 0.1966 | AG114: 0.1979 | AH114: 0.2008 | AI114: 0.2025 | AJ114: 0.2061 | AK114: 0.2075 | AL114: 0.2083 | AM114: 0.2115 | AN114: 0.2076 | AO114: 0.2078 | AP114: 0.2096761988 | AQ114: 0.2103762144 | AR114: 0.2102669316 | AS114: 0.2120525117 | AT114: 0.2152404351 | AU114: 0.2147065161 | AV114: 0.2162623478 | AW114: 0.2099551944 | AX114: 0.2080492628 | AY114: 0.2094335376 | AZ114: 0.1811488536 | BA114: 0
A115: % of Mortgages in the South East | B115: 0.3131 | C115: 0.3123 | D115: 0.3075 | E115: 0.2917 | F115: 0.2776 | G115: 0.2813 | H115: 0.2806 | I115: 0.2812 | J115: 0.2753 | K115: 0.2823 | L115: 0.2907 | M115: 0.2884 | N115: 0.2834 | O115: 0.3039 | P115: 0.2948 | Q115: 0.2987 | R115: 0.3001 | S115: 0.2988 | T115: 0.2903 | U115: 0.2846 | V115: 0.2847 | W115: 0.2882 | X115: 0.2899 | Y115: 0.2869 | Z115: 0.2894 | AA115: 0.2894 | AB115: 0.2946 | AC115: 0.291 | AD115: 0.2953 | AE115: 0.293 | AF115: 0.2917 | AG115: 0.297 | AH115: 0.287 | AI115: 0.2863 | AJ115: 0.2887 | AK115: 0.2827 | AL115: 0.2855 | AM115: 0.2826 | AN115: 0.2791 | AO115: 0.2807 | AP115: 0.2719540304 | AQ115: 0.2739599425 | AR115: 0.2720740016 | AS115: 0.2748574726 | AT115: 0.2675345124 | AU115: 0.2707255314 | AV115: 0.2704565829 | AW115: 0.2776866662 | AX115: 0.2662269206 | AY115: 0.2676417587 | AZ115: 0.2767592679 | BA115: 0
A116: % of Owner Occupied Mortgages | B116: 0 | C116: 0 | D116: 0 | E116: 0 | F116: 0 | G116: 0 | H116: 0 | I116: 0 | J116: 0 | K116: 0 | L116: 0 | M116: 0 | N116: 0 | O116: 0 | P116: 0 | Q116: 0 | R116: 0 | S116: 0 | T116: 0 | U116: 0 | V116: 0 | W116: 0 | X116: 0 | Y116: 0 | Z116: 0 | AA116: 0 | AB116: 0 | AC116: 0 | AD116: 0 | AE116: 0 | AF116: 0 | AG116: 0 | AH116: 0 | AI116: 0 | AJ116: 0 | AK116: 0 | AL116: 0 | AM116: 0 | AN116: 0 | AO116: 0 | AP116: 0 | AQ116: 0 | AR116: 0 | AS116: 0 | AT116: 0 | AU116: 0 | AV116: 0 | AW116: 0 | AX116: 0 | AY116: 0 | AZ116: 0 | BA116: 0
A117: % of Investment Home Loans - Professional Landlords | B117: 0.587 | C117: 0.5826 | D117: 0.5795 | E117: 0.5787 | F117: 0.5751 | G117: 0.5743 | H117: 0.5703 | I117: 0.5767 | J117: 0.5733 | K117: 0.5862 | L117: 0.5724 | M117: 0.5806 | N117: 0.5874 | O117: 0.5896 | P117: 0.6036 | Q117: 0.6072 | R117: 0.6143 | S117: 0.6219 | T117: 0.6246 | U117: 0.6227 | V117: 0.6234 | W117: 0.6198 | X117: 0.6247 | Y117: 0.6246 | Z117: 0.6271 | AA117: 0.6272 | AB117: 0.6243 | AC117: 0.6187 | AD117: 0.6125 | AE117: 0.6179 | AF117: 0.6197 | AG117: 0.6233 | AH117: 0.623 | AI117: 0.6241 | AJ117: 0.6311 | AK117: 0.637 | AL117: 0.6403 | AM117: 0.6479 | AN117: 0.6492 | AO117: 0.6478 | AP117: 0.6434237589 | AQ117: 0.643724097 | AR117: 0.6456557723 | AS117: 0.6471509454 | AT117: 0.6461700829 | AU117: 0.6509306152 | AV117: 0.6468131046 | AW117: 0.6486077993 | AX117: 0.643627083 | AY117: 0.6423517792 | AZ117: 0.6345883047 | BA117: 0
A118: % of Investment Home Loans - Emerging Professional Landlords | B118: 0.413 | C118: 0.4174 | D118: 0.4205 | E118: 0.4213 | F118: 0.4249 | G118: 0.4257 | H118: 0.4297 | I118: 0.4233 | J118: 0.4267 | K118: 0.4138 | L118: 0.4276 | M118: 0.4194 | N118: 0.4126 | O118: 0.4104 | P118: 0.3964 | Q118: 0.3928 | R118: 0.3857 | S118: 0.3781 | T118: 0.3754 | U118: 0.3773 | V118: 0.3766 | W118: 0.3802 | X118: 0.3753 | Y118: 0.3754 | Z118: 0.3729 | AA118: 0.3728 | AB118: 0.3757 | AC118: 0.3813 | AD118: 0.3875 | AE118: 0.3821 | AF118: 0.3803 | AG118: 0.3767 | AH118: 0.377 | AI118: 0.3759 | AJ118: 0.3689 | AK118: 0.363 | AL118: 0.3597 | AM118: 0.3521 | AN118: 0.3508 | AO118: 0.3522 | AP118: 0.3565762411 | AQ118: 0.356275903 | AR118: 0.3543442277 | AS118: 0.3528490546 | AT118: 0.3538299171 | AU118: 0.3490693848 | AV118: 0.3531868954 | AW118: 0.3513922007 | AX118: 0.356372917 | AY118: 0.3576482208 | AZ118: 0.3654116953 | BA118: 0
A119: Weighted Average Interest Coverage Ratio (calculated at the origination date) | B119: 1.51 | C119: 1.51 | D119: 1.51 | E119: 1.51 | F119: 1.51 | G119: 1.52 | H119: 1.51 | I119: 1.51 | J119: 1.51 | K119: 1.51 | L119: 1.52 | M119: 1.52 | N119: 1.52 | O119: 1.54 | P119: 1.52 | Q119: 1.52 | R119: 1.52 | S119: 1.53 | T119: 1.53 | U119: 1.53 | V119: 1.53 | W119: 1.53 | X119: 1.53 | Y119: 1.53 | Z119: 1.53 | AA119: 1.53 | AB119: 1.53 | AC119: 1.54 | AD119: 1.54 | AE119: 1.54 | AF119: 1.53 | AG119: 1.53 | AH119: 1.53 | AI119: 1.53 | AJ119: 1.54 | AK119: 1.54 | AL119: 1.54 | AM119: 1.54 | AN119: 1.54 | AO119: 1.54 | AP119: 1.549063589 | AQ119: 1.549648615 | AR119: 1.549687087 | AS119: 1.550821334 | AT119: 1.550057236 | AU119: 1.550146394 | AV119: 1.550753913 | AW119: 1.550389321 | AX119: 1.562119205 | AY119: 1.562126172 | AZ119: 1.568953287 | BA119: 0
A120: MTL Lifetime Redemption Rate | B120: 0.0714 | C120: 0.0661 | D120: 0.0733 | E120: 0.1176 | F120: 0.132 | G120: 0.139 | H120: 0.1452 | I120: 0.1634 | J120: 0.1702 | K120: 0.1766 | L120: 0.1887 | M120: 0.2036 | N120: 0.2056 | O120: 0.2232 | P120: 0.2257 | Q120: 0.2265 | R120: 0.2233 | S120: 0.2182 | T120: 0.2107 | U120: 0.2029 | V120: 0.1948 | W120: 0.1893 | X120: 0.1836 | Y120: 0.1786 | Z120: 0.1739 | AA120: 0.1682 | AB120: 0.1651 | AC120: 0.1618 | AD120: 0.1589 | AE120: 0.1554 | AF120: 0.1517 | AG120: 0.1495 | AH120: 0.1471 | AI120: 0.1433 | AJ120: 0.1429 | AK120: 0.1402 | AL120: 0.1376 | AM120: 0.1375 | AN120: 0.1357 | AO120: 0.1332 | AP120: 0.1315 | AQ120: 0.1294 | AR120: 0.1271 | AS120: 0.1254 | AT120: 0.1244 | AU120: 0.1229 | AV120: 0.1223 | AW120: 0.1219 | AX120: 0.1233 | AY120: 0.1216 | AZ120: 0.1221 | BA120: 1
A121: Aggregate Potential Redraw Amount | B121: 513000 | C121: 197000 | D121: 439000 | E121: 523000 | F121: 408000 | G121: 440453 | H121: 499013 | I121: 408943 | J121: 414461.42 | K121: 324194.8 | L121: 329509.27 | M121: 147990.84 | N121: 165768.37 | O121: 209697.33 | P121: 249120.61 | Q121: 217246.27 | R121: 175536.78 | S121: 201527.44 | T121: 195010.36 | U121: 205216.36 | V121: 186313.34 | W121: 400227.72 | X121: 424221 | Y121: 431934.3 | Z121: 408041.34 | AA121: 408975.23 | AB121: 415981.12 | AC121: 382975.77 | AD121: 384818.75 | AE121: 371329.53 | AF121: 212411.3 | AG121: 213749.89 | AH121: 253558.81 | AI121: 220065.49 | AJ121: 113126.86 | AK121: 83822.52 | AL121: 0 | AM121: 0 | AN121: 0 | AO121: 0 | AP121: 0 | AQ121: 0 | AR121: 0 | AS121: 0 | AT121: 0 | AU121: 0 | AV121: 0 | AW121: 0 | AX121: 0 | AY121: 0 | AZ121: 0 | BA121: 0
A122: Number of Properties in Possession | B122: 0 | C122: 0 | D122: 0 | E122: 0 | F122: 0 | G122: 0 | H122: 0 | I122: 0 | J122: 0 | K122: 0 | L122: 0 | M122: 0 | N122: 0 | O122: 0 | P122: 0 | Q122: 0 | R122: 0 | S122: 0 | T122: 0 | U122: 0 | V122: 0 | W122: 0 | X122: 0 | Y122: 0 | Z122: 0 | AA122: 0 | AB122: 0 | AC122: 0 | AD122: 0 | AE122: 0 | AF122: 0 | AG122: 0 | AH122: 0 | AI122: 0 | AJ122: 0 | AK122: 0 | AL122: 0 | AM122: 0 | AN122: 0 | AO122: 0 | AP122: 0 | AQ122: 0 | AR122: 0 | AS122: 0 | AT122: 0 | AU122: 0 | AV122: 1 | AW122: 0 | AX122: 0 | AY122: 0 | AZ122: 0 | BA122: 0
A123: Appointment of a Receiver of Rent | B123: 0 | C123: 0 | D123: 0 | E123: 1 | F123: 0 | G123: 1 | H123: 1 | I123: 1 | J123: 1 | K123: 2 | L123: 2 | M123: 1 | N123: 1 | O123: 3 | P123: 3 | Q123: 3 | R123: 4 | S123: 4 | T123: 3 | U123: 2 | V123: 3 | W123: 3 | X123: 3 | Y123: 1 | Z123: 1 | AA123: 1 | AB123: 1 | AC123: 1 | AD123: 1 | AE123: 1 | AF123: 1 | AG123: 1 | AH123: 1 | AI123: 1 | AJ123: 1 | AK123: 1 | AL123: 1 | AM123: 1 | AN123: 1 | AO123: 1 | AP123: 1 | AQ123: 1 | AR123: 1 | AS123: 1 | AT123: 1 | AU123: 1 | AV123: 1 | AW123: 0 | AX123: 0 | AY123: 0 | AZ123: 0 | BA123: 0
A124: MTL Quarterly Losses | B124: 0 | C124: 0 | D124: 0 | E124: 0 | F124: 0 | G124: 0 | H124: 0 | I124: 0 | J124: 14 | K124: 0 | L124: 0 | M124: 0 | N124: 5 | O124: 0 | P124: 0 | Q124: 0 | R124: 62 | S124: 12 | T124: 59 | U124: 75 | V124: 0 | W124: 0 | X124: 0 | Y124: 7 | Z124: 1 | AA124: 0 | AB124: 0 | AC124: 0 | AD124: 0 | AE124: 0 | AF124: 0 | AG124: -1 | AH124: 0 | AI124: 0 | AJ124: 0 | AK124: 0 | AL124: 0 | AM124: 0 | AN124: 0 | AO124: 0 | AP124: 0 | AQ124: -74 | AR124: 0 | AS124: 0 | AT124: 0 | AU124: 0 | AV124: 0 | AW124: 48 | AX124: 0 | AY124: 0 | AZ124: 0 | BA124: 0
A125: Arrears excluding Receiver of Rent and Possession Cases (From 30/04/05)
A126: Performing Loans | B126: 0.9837 | C126: 0.9895 | D126: 0.9902 | E126: 0.988 | F126: 0.9839 | G126: 0.9866 | H126: 0.9945 | I126: 0.9908 | J126: 0.9936 | K126: 0.9975 | L126: 0.9829 | M126: 0.9847 | N126: 0.9935 | O126: 0.9853 | P126: 0.9896 | Q126: 0.9686 | R126: 0.9747 | S126: 0.9932 | T126: 0.9932 | U126: 1 | V126: 1 | W126: 0.978 | X126: 1 | Y126: 1 | Z126: 1 | AA126: 1 | AB126: 0.9932 | AC126: 0.9931 | AD126: 1 | AE126: 1 | AF126: 1 | AG126: 1 | AH126: 1 | AI126: 0.9937 | AJ126: 0.9897 | AK126: 1 | AL126: 1 | AM126: 1 | AN126: 1 | AO126: 1 | AP126: 1 | AQ126: 1 | AR126: 1 | AS126: 0.9928059991 | AT126: 0.9926618247 | AU126: 0.9925632881 | AV126: 1 | AW126: 1 | AX126: 1 | AY126: 1 | AZ126: 1 | BA126: 0
A127: >1 to 2 months arrears | B127: 0.0055 | C127: 0.008 | D127: 0.0024 | E127: 0.0102 | F127: 0.0113 | G127: 0.0079 | H127: 0.0035 | I127: 0 | J127: 0.0041 | K127: 0 | L127: 0.0131 | M127: 0.0122 | N127: 0.0017 | O127: 0.0109 | P127: 0.0022 | Q127: 0.027 | R127: 0.0253 | S127: 0.0068 | T127: 0.0068 | U127: 0 | V127: 0 | W127: 0.022 | X127: 0 | Y127: 0 | Z127: 0 | AA127: 0 | AB127: 0.0068 | AC127: 0.0069 | AD127: 0 | AE127: 0 | AF127: 0 | AG127: 0 | AH127: 0 | AI127: 0.0063 | AJ127: 0.0103 | AK127: 0 | AL127: 0 | AM127: 0 | AN127: 0 | AO127: 0 | AP127: 0 | AQ127: 0 | AR127: 0 | AS127: 0 | AT127: 0 | AU127: 0 | AV127: 0 | AW127: 0 | AX127: 0 | AY127: 0 | AZ127: 0 | BA127: 0
A128: >2 to 3 months arrears | B128: 0.0083 | C128: 0 | D128: 0.0032 | E128: 0 | F128: 0 | G128: 0.0036 | H128: 0 | I128: 0.0038 | J128: 0 | K128: 0 | L128: 0.0013 | M128: 0 | N128: 0.0015 | O128: 0 | P128: 0.0018 | Q128: 0 | R128: 0 | S128: 0 | T128: 0 | U128: 0 | V128: 0 | W128: 0 | X128: 0 | Y128: 0 | Z128: 0 | AA128: 0 | AB128: 0 | AC128: 0 | AD128: 0 | AE128: 0 | AF128: 0 | AG128: 0 | AH128: 0 | AI128: 0 | AJ128: 0 | AK128: 0 | AL128: 0 | AM128: 0 | AN128: 0 | AO128: 0 | AP128: 0 | AQ128: 0 | AR128: 0 | AS128: 0 | AT128: 0 | AU128: 0 | AV128: 0 | AW128: 0 | AX128: 0 | AY128: 0 | AZ128: 0 | BA128: 0
A129: >3 months arrears | B129: 0.0025 | C129: 0.0025 | D129: 0.0042 | E129: 0.0018 | F129: 0.0048 | G129: 0.0019 | H129: 0.002 | I129: 0.0054 | J129: 0.0023 | K129: 0.0025 | L129: 0.0027 | M129: 0.0031 | N129: 0.0033 | O129: 0.0038 | P129: 0.0064 | Q129: 0.0044 | R129: 0 | S129: 0 | T129: 0 | U129: 0 | V129: 0 | W129: 0 | X129: 0 | Y129: 0 | Z129: 0 | AA129: 0 | AB129: 0 | AC129: 0 | AD129: 0 | AE129: 0 | AF129: 0 | AG129: 0 | AH129: 0 | AI129: 0 | AJ129: 0 | AK129: 0 | AL129: 0 | AM129: 0 | AN129: 0 | AO129: 0 | AP129: 0 | AQ129: 0 | AR129: 0 | AS129: 0.007194000905 | AT129: 0.00733817529 | AU129: 0.007436711936 | AV129: 0 | AW129: 0 | AX129: 0 | AY129: 0 | AZ129: 0 | BA129: 0
A130: Total | B130: =SUM(B126:B129) -> 1 | C130: 1 | D130: 1 | E130: 1 | F130: 1 | G130: 1 | H130: 1 | I130: 1 | J130: 1 | K130: 1 | L130: 1 | M130: 1 | N130: 1 | O130: 1 | P130: 1 | Q130: 1 | R130: 1 | S130: 1 | T130: 1 | U130: 1 | V130: 1 | W130: 1 | X130: 1 | Y130: 1 | Z130: 1 | AA130: 1 | AB130: 1 | AC130: 1 | AD130: 1 | AE130: =SUM(AE126:AE129) -> 1 | AF130: 1 | AG130: 1 | AH130: 1 | AI130: 1 | AJ130: 1 | AK130: =SUM(AK126:AK129) -> 1 | AL130: 1 | AM130: 1 | AN130: 1 | AO130: 1 | AP130: 1 | AQ130: 1 | AR130: 1 | AS130: 1 | AT130: 1 | AU130: 1 | AV130: 1 | AW130: 1 | AX130: 1 | AY130: 1 | AZ130: 1 | BA130: 0

Sheet Graphs
P2: PARAGON MORTGAGES (NO.7) PLC
